{"text_format":"1","workbook":"xlsx","n_sheets":4,"sheets":["TABELA","jogo","classificação","MAIS PLANILHAS DE EXCEL"],"not_rendered":{"charts":0,"images":1,"macros":1,"external_links":0,"defined_names":23,"comments":0,"pivot_tables":0},"unopened":[],"bounds":{"document_bytes":16777216,"sheet_cells":100000,"rows_first":2000,"rows_last":500,"rows_between":2000,"halvings":0,"cell_chars":16384,"cell_head_chars":4096},"cells_cut":0,"cells_raw":0,"read":"whole","date_system":"1900"}

{"sheet":"TABELA","index":0,"n_rows":597,"n_cols":34,"rows_kept":597,"cut":false,"hidden":false,"merged":[[47,12,48,15],[49,11,49,16],[39,11,39,17],[0,5,1,5],[3,26,3,27],[0,11,0,19],[3,30,3,31],[45,11,46,16],[3,32,3,33],[3,28,3,29],[3,22,3,23],[3,24,3,25],[1,11,1,19],[56,11,56,16],[57,11,57,16],[58,11,58,16],[51,11,51,16],[52,11,52,16],[53,11,53,16],[54,11,54,16],[55,11,55,16]]}
[null,"Brasileirão 2016",null,null,null,2016,null,null,null,null,null,{"$f":"L2","v":"www.tudoexcel.com.br"}]
[null,"Pontos corridos",null,null,null,null,null,null,null,null,null,"www.tudoexcel.com.br"]
["Os Jogos poderão sofrer alterações por decisão da CBF"]
["20 times se enfrentam em 2 turnos - os últimos 4 caem para a segundona",null,null,null,null,null,null,null,null,"C L A S S I F I C A Ç Ã O",null,null,null,null,null,null,null,null,null,null,null,null,"pontos",null,"Jogos",null,"gols",null,"vitoria",null,"empate",null,"derrota"]
["Data","Joga em casa",null,null,null,"Visitante","Local",null,"P","Times","PG","J","V","E","D","GP","GC","SG",null,"Pp","AP%",null,"D.C","VT","D.C","VT","D.C","VT","D.C","VT","D.C","VT","D.C","VT"]
["1 ª Rodada",null,null,null,null,null,null,null,1,"Palmeiras",{"$f":"IF($L$1=K6xL6,SUMIF($B$6:$B$597,J6,$W$6:$W$597)+SUMIF($F$6:$F$597,J6,$X$6:$X$597),\"Erro\")","v":3},{"$f":"SUMIF($B$6:$B$597,J6,$Y$6:$Y$597)+SUMIF($F$6:$F$597,J6,$Z$6:$Z$597)","v":1},{"$f":"SUMIF($B$6:$B$597,J6,$AC$6:$AC$597)+SUMIF($F$6:$F$597,J6,$AD$6:$AD$597)","v":1},{"$f":"SUMIF($B$6:$B$597,J6,$AE$6:$AE$597)+SUMIF($F$6:$F$597,J6,$AF$6:$AF$597)","v":0},{"$f":"SUMIF($B$6:$B$597,J6,$AG$6:$AG$597)+SUMIF($F$6:$F$597,J6,$AH$6:$AH$597)","v":0},{"$f":"SUMIF($B$6:$B$597,J6,$AA$6:$AA$597)+SUMIF($F$6:$F$597,J6,$AB$6:$AB$597)","v":4},{"$f":"SUMIF($B$6:$B$597,J6,$AB$6:$AB$597)+SUMIF($F$6:$F$597,J6,$AA$6:$AA$597)","v":0},{"$f":"IF($L$1=K6xL6,SUM(P6-Q6),\"erro\")","v":4},null,{"$f":"(L6*3)-K6","v":0},{"$f":"IF(L6=0,\"\",(K6/(3*L6)))","v":1},null,{"$f":"IF(C6&E6=\"\",\"\",IF(C6=E6,1,IF(C6>E6,3,IF(C6<E6,0))))","v":""},{"$f":"IF(C6&E6=\"\",\"\",IF(E6=C6,1,IF(C6<E6,3,IF(C6>E6,0))))","v":""},{"$f":"IF(C6&E6=\"\",\"\",IF(C6&E6<>\"\",1))","v":""},{"$f":"IF(C6&E6=\"\",\"\",IF(C6&E6<>\"\",1))","v":""},{"$f":"IF(C6=\"\",\"\",C6)","v":""},{"$f":"IF(E6=\"\",\"\",E6)","v":""},{"$f":"IF(W6=3,1,0)","v":0},{"$f":"IF(X6=3,1,0)","v":0},{"$f":"IF(W6=1,1,0)","v":0},{"$f":"IF(X6=1,1,0)","v":0},{"$f":"IF(W6=0,1,0)","v":0},{"$f":"IF(X6=0,1,0)","v":0}]
["Data/Horário",null,null,null,null,null,"Local",null,2,"Santa Cruz",3,1,1,0,0,4,1,3,null,0,{"$f":"IF(L7=0,\"\",(K7/(3*L7)))","v":1},null,"","","","","","",{"$f":"IF(W7=3,1,0)","v":0},{"$f":"IF(X7=3,1,0)","v":0},{"$f":"IF(W7=1,1,0)","v":0},{"$f":"IF(X7=1,1,0)","v":0},{"$f":"IF(W7=0,1,0)","v":0},{"$f":"IF(X7=0,1,0)","v":0}]
[{"$f":"jogo!B11","v":"2016-05-15"},{"$f":"jogo!C11","v":"Botafogo"},0,"x",1,{"$f":"jogo!E11","v":"São Paulo"},null,null,3,"Atlético-MG",3,1,1,0,0,1,0,1,null,0,1,null,0,3,1,1,0,1,0,1,0,0,1,0]
[{"$f":"jogo!B12","v":"2016-05-15"},{"$f":"jogo!C12","v":"Santa Cruz"},4,"x",1,{"$f":"jogo!E12","v":"Vitória"},null,null,4,"Coritiba",3,1,1,0,0,1,0,1,null,0,1,null,3,0,1,1,4,1,1,0,0,0,0,1]
[{"$f":"jogo!B13","v":"2016-05-15"},{"$f":"jogo!C13","v":"América-MG"},null,"x",null,{"$f":"jogo!E13","v":"Fluminense"},null,null,5,"São Paulo",3,1,1,0,0,1,0,1,null,0,1,null,"","","","","","",0,0,0,0,0,0]
[{"$f":"jogo!B14","v":"2016-05-15"},{"$f":"jogo!C14","v":"Figueirense"},null,"x",null,{"$f":"jogo!E14","v":"Ponte Preta"},null,null,6,"Flamengo",3,1,1,0,0,1,0,1,null,0,1,null,"","","","","","",0,0,0,0,0,0]
[{"$f":"jogo!B15","v":"2016-05-15"},{"$f":"jogo!C15","v":"Coritiba"},1,"x",0,{"$f":"jogo!E15","v":"Cruzeiro"},null,null,7,"América-MG",0,0,0,0,0,0,0,0,null,0,"",null,3,0,1,1,1,0,1,0,0,0,0,1]
[{"$f":"jogo!B16","v":"2016-05-15"},{"$f":"jogo!C16","v":"Internacional"},null,"x",null,{"$f":"jogo!E16","v":"Chapecoense"},null,null,8,"Internacional",0,0,0,0,0,0,0,0,null,0,"",null,"","","","","","",0,0,0,0,0,0]
[{"$f":"jogo!B17","v":"2016-05-15"},{"$f":"jogo!C17","v":"Atlético-MG"},1,"x",0,{"$f":"jogo!E17","v":"Santos"},null,null,9,"Figueirense",0,0,0,0,0,0,0,0,null,0,"",null,3,0,1,1,1,0,1,0,0,0,0,1]
[{"$f":"jogo!B18","v":"2016-05-15"},{"$f":"jogo!C18","v":"Palmeiras"},4,"x",0,{"$f":"jogo!E18","v":"Atlético-PR"},null,null,10,"Grêmio",0,0,0,0,0,0,0,0,null,0,"",null,3,0,1,1,4,0,1,0,0,0,0,1]
[{"$f":"jogo!B19","v":"2016-05-15"},{"$f":"jogo!C19","v":"Corinthians"},null,"x",null,{"$f":"jogo!E19","v":"Grêmio"},null,null,11,"Corinthians",0,0,0,0,0,0,0,0,null,0,{"$f":"IF(L16=0,\"\",(K16/(3*L16)))","v":""},null,"","","","","","",0,0,0,0,0,0]
[{"$f":"jogo!B20","v":"2016-05-15"},{"$f":"jogo!C20","v":"Flamengo"},1,"x",0,{"$f":"jogo!E20","v":"Sport"},null,null,12,"Ponte Preta",0,0,0,0,0,0,0,0,null,0,"",null,3,0,1,1,1,0,1,0,0,0,0,1]
["2 ª Rodada",null,null,null,null,null,null,null,13,"Chapecoense",0,0,0,0,0,0,0,0,null,0,"",null,"","","","","","",0,0,0,0,0,0]
["Data/Horário",null,null,null,null,null,"Local",null,14,"Fluminense",0,0,0,0,0,0,0,0,null,0,"",null,"","","","","","",0,0,0,0,0,0]
[{"$f":"jogo!B21","v":"2016-05-22"},{"$f":"jogo!C21","v":"Sport"},null,"x",null,{"$f":"jogo!E21","v":"Botafogo"},null,null,15,"Sport",0,1,0,0,1,0,1,-1,null,3,0,null,"","","","","","",0,0,0,0,0,0]
[{"$f":"jogo!B22","v":"2016-05-22"},{"$f":"jogo!C22","v":"Ponte Preta"},null,"x",null,{"$f":"jogo!E22","v":"Palmeiras"},null,null,16,"Botafogo",0,1,0,0,1,0,1,-1,null,3,0,null,"","","","","","",0,0,0,0,0,0]
[{"$f":"jogo!B23","v":"2016-05-22"},{"$f":"jogo!C23","v":"Chapecoense"},null,"x",null,{"$f":"jogo!E23","v":"América-MG"},null,null,17,"Cruzeiro",0,1,0,0,1,0,1,-1,null,3,{"$f":"IF(L22=0,\"\",(K22/(3*L22)))","v":0},null,"","","","","","",0,0,0,0,0,0]
[{"$f":"jogo!B24","v":"2016-05-22"},{"$f":"jogo!C24","v":"Atlético-PR"},null,"x",null,{"$f":"jogo!E24","v":"Atlético-MG"},null,null,18,"Santos",0,1,0,0,1,0,1,-1,null,3,0,null,"","","","","","",0,0,0,0,0,0]
[{"$f":"jogo!B25","v":"2016-05-22"},{"$f":"jogo!C25","v":"Grêmio"},null,"x",null,{"$f":"jogo!E25","v":"Flamengo"},null,null,19,"Vitória",0,1,0,0,1,1,4,-3,null,3,0,null,"","","","","","",0,0,0,0,0,0]
[{"$f":"jogo!B26","v":"2016-05-22"},{"$f":"jogo!C26","v":"Cruzeiro"},null,"x",null,{"$f":"jogo!E26","v":"Figueirense"},null,null,20,"Atlético-PR",0,1,0,0,1,0,4,-4,null,3,0,null,"","","","","","",0,0,0,0,0,0]
[{"$f":"jogo!B27","v":"2016-05-22"},{"$f":"jogo!C27","v":"Santos"},null,"x",null,{"$f":"jogo!E27","v":"Coritiba"},null,null,null,null,null,null,null,null,null,null,null,null,null,null,null,null,"","","","","","",0,0,0,0,0,0]
[{"$f":"jogo!B28","v":"2016-05-22"},{"$f":"jogo!C28","v":"São Paulo"},null,"x",null,{"$f":"jogo!E28","v":"Internacional"},null,null,null,"Não funciona no OpenOffice devido a Macro",null,null,null,null,null,null,null,null,null,null,null,null,"","","","","","",0,0,0,0,0,0]
[{"$f":"jogo!B29","v":"2016-05-22"},{"$f":"jogo!C29","v":"Fluminense"},null,"x",null,{"$f":"jogo!E29","v":"Santa Cruz"},null,null,null,null,null,null,null,null,null,null,null,null,null,null,"",null,"","","","","","",0,0,0,0,0,0]
[{"$f":"jogo!B30","v":"2016-05-22"},{"$f":"jogo!C30","v":"Vitória"},null,"x",null,{"$f":"jogo!E30","v":"Corinthians"},null,null,null,"OBS","Se a Macro Atualizar não funcionar",null,null,null,null,null,null,null,null,null,"",null,"","","","","","",0,0,0,0,0,0]
["3 ª Rodada",null,null,null,null,null,null,null,null,null,"Habilite-a para poder atualizar a tabela",null,null,null,null,null,null,null,null,null,null,null,"","","","","","",0,0,0,0,0,0]
["Data/Horário",null,null,null,null,null,"Local",null,null,null,"Excel 2007 ",null,null,null,null,null,null,null,null,null,null,null,"","","","","","",0,0,0,0,0,0]
[{"$f":"jogo!B31","v":"2016-05-25"},{"$f":"jogo!C31","v":"Coritiba"},null,"x",null,{"$f":"jogo!E31","v":"São Paulo"},null,null,null,null,"Excel XP",null,null,null,null,null,null,null,null,null,null,null,"","","","","","",0,0,0,0,0,0]
[{"$f":"jogo!B32","v":"2016-05-25"},{"$f":"jogo!C32","v":"Figueirense"},null,"x",null,{"$f":"jogo!E32","v":"Santos"},null,null,null,null,"Excel 97/2000/2003",null,null,null,null,null,null,null,null,null,null,null,"","","","","","",0,0,0,0,0,0]
[{"$f":"jogo!B33","v":"2016-05-25"},{"$f":"jogo!C33","v":"América-MG"},null,"x",null,{"$f":"jogo!E33","v":"Vitória"},null,null,null,null,"Você pode alterar datas e horários",null,null,null,null,null,null,null,null,null,null,null,"","","","","","",0,0,0,0,0,0]
[{"$f":"jogo!B34","v":"2016-05-25"},{"$f":"jogo!C34","v":"Santa Cruz"},null,"x",null,{"$f":"jogo!E34","v":"Cruzeiro"},null,null,null,null,"de acordo com as mudanças da CBF",null,null,null,null,null,null,null,null,null,null,null,"","","","","","",0,0,0,0,0,0]
[{"$f":"jogo!B35","v":"2016-05-25"},{"$f":"jogo!C35","v":"Internacional"},null,"x",null,{"$f":"jogo!E35","v":"Sport"},null,null,null,null,"Não nos responsabilizamos pelas mudancas",null,null,null,null,null,null,null,null,null,null,null,"","","","","","",0,0,0,0,0,0]
[{"$f":"jogo!B36","v":"2016-05-25"},{"$f":"jogo!C36","v":"Atlético-MG"},null,"x",null,{"$f":"jogo!E36","v":"Grêmio"},null,null,null,null,null,null,null,null,null,null,null,null,null,null,null,null,"","","","","","",0,0,0,0,0,0]
[{"$f":"jogo!B37","v":"2016-05-25"},{"$f":"jogo!C37","v":"Palmeiras"},null,"x",null,{"$f":"jogo!E37","v":"Fluminense"},null,null,null,null,null,null,null,null,null,null,null,null,null,null,null,null,"","","","","","",0,0,0,0,0,0]
[{"$f":"jogo!B38","v":"2016-05-25"},{"$f":"jogo!C38","v":"Corinthians"},null,"x",null,{"$f":"jogo!E38","v":"Ponte Preta"},null,null,null,null,null,null,null,null,null,null,null,null,null,null,null,null,"","","","","","",0,0,0,0,0,0]
[{"$f":"jogo!B39","v":"2016-05-25"},{"$f":"jogo!C39","v":"Flamengo"},null,"x",null,{"$f":"jogo!E39","v":"Chapecoense"},null,null,null,null,null,"Clique Aqui e Veja Mais Planilhas",null,null,null,null,null,null,null,null,null,null,"","","","","","",0,0,0,0,0,0]
[{"$f":"jogo!B40","v":"2016-05-25"},{"$f":"jogo!C40","v":"Botafogo"},null,"x",null,{"$f":"jogo!E40","v":"Atlético-PR"},null,null,null,null,null,null,null,null,null,null,null,null,null,null,null,null,"","","","","","",0,0,0,0,0,0]
["4 ª Rodada",null,null,null,null,null,null,null,null,null,null,null,null,null,null,null,null,null,null,null,null,null,"","","","","","",0,0,0,0,0,0]
["Data/Horário",null,null,null,null,null,"Local",null,null,null,null,null,null,null,null,null,null,null,null,null,null,null,"","","","","","",0,0,0,0,0,0]
[{"$f":"jogo!B41","v":"2016-05-29"},{"$f":"jogo!C41","v":"Atlético-PR"},null,"x",null,{"$f":"jogo!E41","v":"Figueirense"},null,null,null,null,null,null,null,null,null,null,null,null,null,null,null,null,"","","","","","",0,0,0,0,0,0]
[{"$f":"jogo!B42","v":"2016-05-29"},{"$f":"jogo!C42","v":"Chapecoense"},null,"x",null,{"$f":"jogo!E42","v":"Santa Cruz"},null,null,null,null,null,null,null,null,null,null,null,null,null,null,null,null,"","","","","","",0,0,0,0,0,0]
[{"$f":"jogo!B43","v":"2016-05-29"},{"$f":"jogo!C43","v":"Ponte Preta"},null,"x",null,{"$f":"jogo!E43","v":"Flamengo"},null,null,null,null,null,"Super Planilhas de Excel",null,null,null,null,null,null,null,null,null,null,"","","","","","",0,0,0,0,0,0]
[{"$f":"jogo!B44","v":"2016-05-29"},{"$f":"jogo!C44","v":"Sport"},null,"x",null,{"$f":"jogo!E44","v":"Corinthians"},null,null,null,null,null,null,null,null,null,null,null,null,null,null,null,null,"","","","","","",0,0,0,0,0,0]
[{"$f":"jogo!B45","v":"2016-05-29"},{"$f":"jogo!C45","v":"Grêmio"},null,"x",null,{"$f":"jogo!E45","v":"Coritiba"},null,null,null,null,null,null,"Clique Aqui",null,null,null,null,null,null,null,null,null,"","","","","","",0,0,0,0,0,0]
[{"$f":"jogo!B46","v":"2016-05-29"},{"$f":"jogo!C46","v":"Cruzeiro"},null,"x",null,{"$f":"jogo!E46","v":"América-MG"},null,null,null,null,null,null,null,null,null,null,null,null,null,null,null,null,"","","","","","",0,0,0,0,0,0]
[{"$f":"jogo!B47","v":"2016-05-29"},{"$f":"jogo!C47","v":"Santos"},null,"x",null,{"$f":"jogo!E47","v":"Internacional"},null,null,null,null,null,"e acesse diversas planilhas",null,null,null,null,null,null,null,null,null,null,"","","","","","",0,0,0,0,0,0]
[{"$f":"jogo!B48","v":"2016-05-29"},{"$f":"jogo!C48","v":"São Paulo"},null,"x",null,{"$f":"jogo!E48","v":"Palmeiras"},null,null,null,null,null,null,null,null,null,null,null,null,null,null,null,null,"","","","","","",0,0,0,0,0,0]
[{"$f":"jogo!B49","v":"2016-05-29"},{"$f":"jogo!C49","v":"Fluminense"},null,"x",null,{"$f":"jogo!E49","v":"Botafogo"},null,null,null,null,null,"planilha de controle de estoque",null,null,null,null,null,null,null,null,null,null,"","","","","","",0,0,0,0,0,0]
[{"$f":"jogo!B50","v":"2016-05-29"},{"$f":"jogo!C50","v":"Vitória"},null,"x",null,{"$f":"jogo!E50","v":"Atlético-MG"},null,null,null,null,null,"planilha de controle de gastos",null,null,null,null,null,null,null,null,null,null,"","","","","","",0,0,0,0,0,0]
["5 ª Rodada",null,null,null,null,null,null,null,null,null,null,"planilha de fluxo de caixa",null,null,null,null,null,null,null,null,null,null,"","","","","","",0,0,0,0,0,0]
["Data/Horário",null,null,null,null,null,"Local",null,null,null,null,"planilha de cotação de preços",null,null,null,null,null,null,null,null,null,null,"","","","","","",0,0,0,0,0,0]
[{"$f":"jogo!B51","v":"2016-06-01"},{"$f":"jogo!C51","v":"Coritiba"},null,"x",null,{"$f":"jogo!E51","v":"Chapecoense"},null,null,null,null,null,"custo para construção e reformas",null,null,null,null,null,null,null,null,null,null,"","","","","","",0,0,0,0,0,0]
[{"$f":"jogo!B52","v":"2016-06-01"},{"$f":"jogo!C52","v":"Figueirense"},null,"x",null,{"$f":"jogo!E52","v":"São Paulo"},null,null,null,null,null,null,null,null,null,null,null,null,null,null,null,null,"","","","","","",0,0,0,0,0,0]
[{"$f":"jogo!B53","v":"2016-06-01"},{"$f":"jogo!C53","v":"América-MG"},null,"x",null,{"$f":"jogo!E53","v":"Ponte Preta"},null,null,null,null,null,"E MUITAS OUTRAS",null,null,null,null,null,null,null,null,null,null,"","","","","","",0,0,0,0,0,0]
[{"$f":"jogo!B54","v":"2016-06-01"},{"$f":"jogo!C54","v":"Santa Cruz"},null,"x",null,{"$f":"jogo!E54","v":"Sport"},null,null,null,null,null,"VOCÊ ENCONTRA AQUI",null,null,null,null,null,null,null,null,null,null,"","","","","","",0,0,0,0,0,0]
[{"$f":"jogo!B55","v":"2016-06-01"},{"$f":"jogo!C55","v":"Internacional"},null,"x",null,{"$f":"jogo!E55","v":"Atlético-PR"},null,null,null,null,null,null,null,null,null,null,null,null,null,null,null,null,"","","","","","",0,0,0,0,0,0]
[{"$f":"jogo!B56","v":"2016-06-01"},{"$f":"jogo!C56","v":"Atlético-MG"},null,"x",null,{"$f":"jogo!E56","v":"Fluminense"},null,null,null,null,null,null,null,null,null,null,null,null,null,null,null,null,"","","","","","",0,0,0,0,0,0]
[{"$f":"jogo!B57","v":"2016-06-01"},{"$f":"jogo!C57","v":"Palmeiras"},null,"x",null,{"$f":"jogo!E57","v":"Grêmio"},null,null,null,null,null,null,null,null,null,null,null,null,null,null,null,null,"","","","","","",0,0,0,0,0,0]
[{"$f":"jogo!B58","v":"2016-06-01"},{"$f":"jogo!C58","v":"Corinthians"},null,"x",null,{"$f":"jogo!E58","v":"Santos"},null,null,null,null,null,null,null,null,null,null,null,null,null,null,null,null,"","","","","","",0,0,0,0,0,0]
[{"$f":"jogo!B59","v":"2016-06-01"},{"$f":"jogo!C59","v":"Flamengo"},null,"x",null,{"$f":"jogo!E59","v":"Vitória"},null,null,null,null,null,null,null,null,null,null,null,null,null,null,null,null,"","","","","","",0,0,0,0,0,0]
[{"$f":"jogo!B60","v":"2016-06-01"},{"$f":"jogo!C60","v":"Botafogo"},null,"x",null,{"$f":"jogo!E60","v":"Cruzeiro"},null,null,null,null,null,null,null,null,null,null,null,null,null,null,null,null,"","","","","","",0,0,0,0,0,0]
["6 ª Rodada",null,null,null,null,null,null,null,null,null,null,null,null,null,null,null,null,null,null,null,null,null,"","","","","","",0,0,0,0,0,0]
["Data/Horário",null,null,null,null,null,"Local",null,null,null,null,null,null,null,null,null,null,null,null,null,null,null,"","","","","","",0,0,0,0,0,0]
[{"$f":"jogo!B61","v":"2016-06-05"},{"$f":"jogo!C61","v":"Atlético-PR"},null,"x",null,{"$f":"jogo!E61","v":"Santa Cruz"},null,null,null,null,null,null,null,null,null,null,null,null,null,null,null,null,"","","","","","",0,0,0,0,0,0]
[{"$f":"jogo!B62","v":"2016-06-05"},{"$f":"jogo!C62","v":"Chapecoense"},null,"x",null,{"$f":"jogo!E62","v":"Fluminense"},null,null,null,null,null,null,null,null,null,null,null,null,null,null,null,null,"","","","","","",0,0,0,0,0,0]
[{"$f":"jogo!B63","v":"2016-06-05"},{"$f":"jogo!C63","v":"América-MG"},null,"x",null,{"$f":"jogo!E63","v":"Figueirense"},null,null,null,null,null,null,null,null,null,null,null,null,null,null,null,null,{"$f":"IF(C70&E70=\"\",\"\",IF(C70=E70,1,IF(C70>E70,3,IF(C70<E70,0))))","v":""},{"$f":"IF(C70&E70=\"\",\"\",IF(E70=C70,1,IF(C70<E70,3,IF(C70>E70,0))))","v":""},{"$f":"IF(C70&E70=\"\",\"\",IF(C70&E70<>\"\",1))","v":""},{"$f":"IF(C70&E70=\"\",\"\",IF(C70&E70<>\"\",1))","v":""},{"$f":"IF(C70=\"\",\"\",C70)","v":""},{"$f":"IF(E70=\"\",\"\",E70)","v":""},0,0,0,0,0,0]
[{"$f":"jogo!B64","v":"2016-06-05"},{"$f":"jogo!C64","v":"Sport"},null,"x",null,{"$f":"jogo!E64","v":"Atlético-MG"},null,null,null,null,null,null,null,null,null,null,null,null,null,null,null,null,"","","","","","",{"$f":"IF(W71=3,1,0)","v":0},{"$f":"IF(X71=3,1,0)","v":0},{"$f":"IF(W71=1,1,0)","v":0},{"$f":"IF(X71=1,1,0)","v":0},{"$f":"IF(W71=0,1,0)","v":0},{"$f":"IF(X71=0,1,0)","v":0}]
[{"$f":"jogo!B65","v":"2016-06-05"},{"$f":"jogo!C65","v":"Grêmio"},null,"x",null,{"$f":"jogo!E65","v":"Ponte Preta"},null,null,null,null,null,null,null,null,null,null,null,null,null,null,null,null,"","","","","","",0,0,0,0,0,0]
[{"$f":"jogo!B66","v":"2016-06-05"},{"$f":"jogo!C66","v":"Cruzeiro"},null,"x",null,{"$f":"jogo!E66","v":"São Paulo"},null,null,null,null,null,null,null,null,null,null,null,null,null,null,null,null,"","","","","","",0,0,0,0,0,0]
[{"$f":"jogo!B67","v":"2016-06-05"},{"$f":"jogo!C67","v":"Santos"},null,"x",null,{"$f":"jogo!E67","v":"Botafogo"},null,null,null,null,null,null,null,null,null,null,null,null,null,null,null,null,"","","","","","",0,0,0,0,0,0]
[{"$f":"jogo!B68","v":"2016-06-05"},{"$f":"jogo!C68","v":"Corinthians"},null,"x",null,{"$f":"jogo!E68","v":"Coritiba"},null,null,null,null,null,null,null,null,null,null,null,null,null,null,null,null,"","","","","","",0,0,0,0,0,0]
[{"$f":"jogo!B69","v":"2016-06-05"},{"$f":"jogo!C69","v":"Flamengo"},null,"x",null,{"$f":"jogo!E69","v":"Palmeiras"},null,null,null,null,null,null,null,null,null,null,null,null,null,null,null,null,"","","","","","",0,0,0,0,0,0]
[{"$f":"jogo!B70","v":"2016-06-05"},{"$f":"jogo!C70","v":"Vitória"},null,"x",null,{"$f":"jogo!E70","v":"Internacional"},null,null,null,null,null,null,null,null,null,null,null,null,null,null,null,null,"","","","","","",0,0,0,0,0,0]
["7 ª Rodada",null,null,null,null,null,null,null,null,null,null,null,null,null,null,null,null,null,null,null,null,null,"","","","","","",0,0,0,0,0,0]
["Data/Horário",null,null,null,null,null,"Local",null,null,null,null,null,null,null,null,null,null,null,null,null,null,null,"","","","","","",0,0,0,0,0,0]
[{"$f":"jogo!B71","v":"2016-06-12"},{"$f":"jogo!C71","v":"Coritiba"},null,"x",null,{"$f":"jogo!E71","v":"Sport"},null,null,null,null,null,null,null,null,null,null,null,null,null,null,null,null,"","","","","","",0,0,0,0,0,0]
[{"$f":"jogo!B72","v":"2016-06-12"},{"$f":"jogo!C72","v":"Figueirense"},null,"x",null,{"$f":"jogo!E72","v":"Flamengo"},null,null,null,null,null,null,null,null,null,null,null,null,null,null,null,null,"","","","","","",0,0,0,0,0,0]
[{"$f":"jogo!B73","v":"2016-06-12"},{"$f":"jogo!C73","v":"Ponte Preta"},null,"x",null,{"$f":"jogo!E73","v":"Chapecoense"},null,null,null,null,null,null,null,null,null,null,null,null,null,null,null,null,"","","","","","",0,0,0,0,0,0]
[{"$f":"jogo!B74","v":"2016-06-12"},{"$f":"jogo!C74","v":"Santa Cruz"},null,"x",null,{"$f":"jogo!E74","v":"Santos"},null,null,null,null,null,null,null,null,null,null,null,null,null,null,null,null,"","","","","","",0,0,0,0,0,0]
[{"$f":"jogo!B75","v":"2016-06-12"},{"$f":"jogo!C75","v":"Internacional"},null,"x",null,{"$f":"jogo!E75","v":"América-MG"},null,null,null,null,null,null,null,null,null,null,null,null,null,null,null,null,"","","","","","",0,0,0,0,0,0]
[{"$f":"jogo!B76","v":"2016-06-12"},{"$f":"jogo!C76","v":"Atlético-MG"},null,"x",null,{"$f":"jogo!E76","v":"Cruzeiro"},null,null,null,null,null,null,null,null,null,null,null,null,null,null,null,null,"","","","","","",0,0,0,0,0,0]
[{"$f":"jogo!B77","v":"2016-06-12"},{"$f":"jogo!C77","v":"Palmeiras"},null,"x",null,{"$f":"jogo!E77","v":"Corinthians"},null,null,null,null,null,null,null,null,null,null,null,null,null,null,null,null,"","","","","","",0,0,0,0,0,0]
[{"$f":"jogo!B78","v":"2016-06-12"},{"$f":"jogo!C78","v":"São Paulo"},null,"x",null,{"$f":"jogo!E78","v":"Atlético-PR"},null,null,null,null,null,null,null,null,null,null,null,null,null,null,null,null,"","","","","","",0,0,0,0,0,0]
[{"$f":"jogo!B79","v":"2016-06-12"},{"$f":"jogo!C79","v":"Fluminense"},null,"x",null,{"$f":"jogo!E79","v":"Grêmio"},null,null,null,null,null,null,null,null,null,null,null,null,null,null,null,null,"","","","","","",0,0,0,0,0,0]
[{"$f":"jogo!B80","v":"2016-06-12"},{"$f":"jogo!C80","v":"Botafogo"},null,"x",null,{"$f":"jogo!E80","v":"Vitória"},null,null,null,null,null,null,null,null,null,null,null,null,null,null,null,null,"","","","","","",0,0,0,0,0,0]
["8 ª Rodada",null,null,null,null,null,null,null,null,null,null,null,null,null,null,null,null,null,null,null,null,null,"","","","","","",0,0,0,0,0,0]
["Data/Horário",null,null,null,null,null,"Local",null,null,null,null,null,null,null,null,null,null,null,null,null,null,null,"","","","","","",0,0,0,0,0,0]
[{"$f":"jogo!B81","v":"2016-06-15"},{"$f":"jogo!C81","v":"Coritiba"},null,"x",null,{"$f":"jogo!E81","v":"Palmeiras"},null,null,null,null,null,null,null,null,null,null,null,null,null,null,null,null,"","","","","","",0,0,0,0,0,0]
[{"$f":"jogo!B82","v":"2016-06-15"},{"$f":"jogo!C82","v":"Chapecoense"},null,"x",null,{"$f":"jogo!E82","v":"Grêmio"},null,null,null,null,null,null,null,null,null,null,null,null,null,null,null,null,"","","","","","",0,0,0,0,0,0]
[{"$f":"jogo!B83","v":"2016-06-15"},{"$f":"jogo!C83","v":"Ponte Preta"},null,"x",null,{"$f":"jogo!E83","v":"Atlético-PR"},null,null,null,null,null,null,null,null,null,null,null,null,null,null,null,null,"","","","","","",0,0,0,0,0,0]
[{"$f":"jogo!B84","v":"2016-06-15"},{"$f":"jogo!C84","v":"Santa Cruz"},null,"x",null,{"$f":"jogo!E84","v":"Figueirense"},null,null,null,null,null,null,null,null,null,null,null,null,null,null,null,null,"","","","","","",0,0,0,0,0,0]
[{"$f":"jogo!B85","v":"2016-06-15"},{"$f":"jogo!C85","v":"Internacional"},null,"x",null,{"$f":"jogo!E85","v":"Atlético-MG"},null,null,null,null,null,null,null,null,null,null,null,null,null,null,null,null,"","","","","","",0,0,0,0,0,0]
[{"$f":"jogo!B86","v":"2016-06-15"},{"$f":"jogo!C86","v":"Cruzeiro"},null,"x",null,{"$f":"jogo!E86","v":"Flamengo"},null,null,null,null,null,null,null,null,null,null,null,null,null,null,null,null,"","","","","","",0,0,0,0,0,0]
[{"$f":"jogo!B87","v":"2016-06-15"},{"$f":"jogo!C87","v":"Santos"},null,"x",null,{"$f":"jogo!E87","v":"Sport"},null,null,null,null,null,null,null,null,null,null,null,null,null,null,null,null,"","","","","","",0,0,0,0,0,0]
[{"$f":"jogo!B88","v":"2016-06-15"},{"$f":"jogo!C88","v":"São Paulo"},null,"x",null,{"$f":"jogo!E88","v":"Vitória"},null,null,null,null,null,null,null,null,null,null,null,null,null,null,null,null,"","","","","","",0,0,0,0,0,0]
[{"$f":"jogo!B89","v":"2016-06-15"},{"$f":"jogo!C89","v":"Fluminense"},null,"x",null,{"$f":"jogo!E89","v":"Corinthians"},null,null,null,null,null,null,null,null,null,null,null,null,null,null,null,null,"","","","","","",0,0,0,0,0,0]
[{"$f":"jogo!B90","v":"2016-06-15"},{"$f":"jogo!C90","v":"Botafogo"},null,"x",null,{"$f":"jogo!E90","v":"América-MG"},null,null,null,null,null,null,null,null,null,null,null,null,null,null,null,null,"","","","","","",0,0,0,0,0,0]
["9 ª Rodada",null,null,null,null,null,null,null,null,null,null,null,null,null,null,null,null,null,null,null,null,null,"","","","","","",0,0,0,0,0,0]
["Data/Horário",null,null,null,null,null,"Local",null,null,null,null,null,null,null,null,null,null,null,null,null,null,null,"","","","","","",0,0,0,0,0,0]
[{"$f":"jogo!B91","v":"2016-06-19"},{"$f":"jogo!C91","v":"Atlético-PR"},null,"x",null,{"$f":"jogo!E91","v":"Santos"},null,null,null,null,null,null,null,null,null,null,null,null,null,null,null,null,"","","","","","",0,0,0,0,0,0]
[{"$f":"jogo!B92","v":"2016-06-19"},{"$f":"jogo!C92","v":"Figueirense"},null,"x",null,{"$f":"jogo!E92","v":"Internacional"},null,null,null,null,null,null,null,null,null,null,null,null,null,null,null,null,"","","","","","",0,0,0,0,0,0]
[{"$f":"jogo!B93","v":"2016-06-19"},{"$f":"jogo!C93","v":"América-MG"},null,"x",null,{"$f":"jogo!E93","v":"Coritiba"},null,null,null,null,null,null,null,null,null,null,null,null,null,null,null,null,"","","","","","",0,0,0,0,0,0]
[{"$f":"jogo!B94","v":"2016-06-19"},{"$f":"jogo!C94","v":"Sport"},null,"x",null,{"$f":"jogo!E94","v":"Fluminense"},null,null,null,null,null,null,null,null,null,null,null,null,null,null,null,null,"","","","","","",0,0,0,0,0,0]
[{"$f":"jogo!B95","v":"2016-06-19"},{"$f":"jogo!C95","v":"Grêmio"},null,"x",null,{"$f":"jogo!E95","v":"Cruzeiro"},null,null,null,null,null,null,null,null,null,null,null,null,null,null,null,null,"","","","","","",0,0,0,0,0,0]
[{"$f":"jogo!B96","v":"2016-06-19"},{"$f":"jogo!C96","v":"Atlético-MG"},null,"x",null,{"$f":"jogo!E96","v":"Ponte Preta"},null,null,null,null,null,null,null,null,null,null,null,null,null,null,null,null,"","","","","","",0,0,0,0,0,0]
[{"$f":"jogo!B97","v":"2016-06-19"},{"$f":"jogo!C97","v":"Palmeiras"},null,"x",null,{"$f":"jogo!E97","v":"Santa Cruz"},null,null,null,null,null,null,null,null,null,null,null,null,null,null,null,null,"","","","","","",0,0,0,0,0,0]
[{"$f":"jogo!B98","v":"2016-06-19"},{"$f":"jogo!C98","v":"Corinthians"},null,"x",null,{"$f":"jogo!E98","v":"Botafogo"},null,null,null,null,null,null,null,null,null,null,null,null,null,null,null,null,"","","","","","",0,0,0,0,0,0]
[{"$f":"jogo!B99","v":"2016-06-19"},{"$f":"jogo!C99","v":"Flamengo"},null,"x",null,{"$f":"jogo!E99","v":"São Paulo"},null,null,null,null,null,null,null,null,null,null,null,null,null,null,null,null,"","","","","","",0,0,0,0,0,0]
[{"$f":"jogo!B100","v":"2016-06-19"},{"$f":"jogo!C100","v":"Vitória"},null,"x",null,{"$f":"jogo!E100","v":"Chapecoense"},null,null,null,null,null,null,null,null,null,null,null,null,null,null,null,null,"","","","","","",0,0,0,0,0,0]
["10 ª Rodada",null,null,null,null,null,null,null,null,null,null,null,null,null,null,null,null,null,null,null,null,null,"","","","","","",0,0,0,0,0,0]
["Data/Horário",null,null,null,null,null,"Local",null,null,null,null,null,null,null,null,null,null,null,null,null,null,null,"","","","","","",0,0,0,0,0,0]
[{"$f":"jogo!B101","v":"2016-06-22"},{"$f":"jogo!C101","v":"Coritiba"},null,"x",null,{"$f":"jogo!E101","v":"Internacional"},null,null,null,null,null,null,null,null,null,null,null,null,null,null,null,null,"","","","","","",0,0,0,0,0,0]
[{"$f":"jogo!B102","v":"2016-06-22"},{"$f":"jogo!C102","v":"Chapecoense"},null,"x",null,{"$f":"jogo!E102","v":"Atlético-PR"},null,null,null,null,null,null,null,null,null,null,null,null,null,null,null,null,"","","","","","",0,0,0,0,0,0]
[{"$f":"jogo!B103","v":"2016-06-22"},{"$f":"jogo!C103","v":"Ponte Preta"},null,"x",null,{"$f":"jogo!E103","v":"Cruzeiro"},null,null,null,null,null,null,null,null,null,null,null,null,null,null,null,null,"","","","","","",0,0,0,0,0,0]
[{"$f":"jogo!B104","v":"2016-06-22"},{"$f":"jogo!C104","v":"Santa Cruz"},null,"x",null,{"$f":"jogo!E104","v":"Flamengo"},null,null,null,null,null,null,null,null,null,null,null,null,null,null,null,null,"","","","","","",0,0,0,0,0,0]
[{"$f":"jogo!B105","v":"2016-06-22"},{"$f":"jogo!C105","v":"Grêmio"},null,"x",null,{"$f":"jogo!E105","v":"Vitória"},null,null,null,null,null,null,null,null,null,null,null,null,null,null,null,null,"","","","","","",0,0,0,0,0,0]
[{"$f":"jogo!B106","v":"2016-06-22"},{"$f":"jogo!C106","v":"Atlético-MG"},null,"x",null,{"$f":"jogo!E106","v":"Corinthians"},null,null,null,null,null,null,null,null,null,null,null,null,null,null,null,null,"","","","","","",0,0,0,0,0,0]
[{"$f":"jogo!B107","v":"2016-06-22"},{"$f":"jogo!C107","v":"Palmeiras"},null,"x",null,{"$f":"jogo!E107","v":"América-MG"},null,null,null,null,null,null,null,null,null,null,null,null,null,null,null,null,"","","","","","",0,0,0,0,0,0]
[{"$f":"jogo!B108","v":"2016-06-22"},{"$f":"jogo!C108","v":"São Paulo"},null,"x",null,{"$f":"jogo!E108","v":"Sport"},null,null,null,null,null,null,null,null,null,null,null,null,null,null,null,null,"","","","","","",0,0,0,0,0,0]
[{"$f":"jogo!B109","v":"2016-06-22"},{"$f":"jogo!C109","v":"Fluminense"},null,"x",null,{"$f":"jogo!E109","v":"Santos"},null,null,null,null,null,null,null,null,null,null,null,null,null,null,null,null,"","","","","","",0,0,0,0,0,0]
[{"$f":"jogo!B110","v":"2016-06-22"},{"$f":"jogo!C110","v":"Botafogo"},null,"x",null,{"$f":"jogo!E110","v":"Figueirense"},null,null,null,null,null,null,null,null,null,null,null,null,null,null,null,null,"","","","","","",0,0,0,0,0,0]
["11 ª Rodada",null,null,null,null,null,null,null,null,null,null,null,null,null,null,null,null,null,null,null,null,null,"","","","","","",0,0,0,0,0,0]
["Data/Horário",null,null,null,null,null,"Local",null,null,null,null,null,null,null,null,null,null,null,null,null,null,null,"","","","","","",0,0,0,0,0,0]
[{"$f":"jogo!B111","v":"2016-06-26"},{"$f":"jogo!C111","v":"Atlético-PR"},null,"x",null,{"$f":"jogo!E111","v":"Grêmio"},null,null,null,null,null,null,null,null,null,null,null,null,null,null,null,null,"","","","","","",0,0,0,0,0,0]
[{"$f":"jogo!B112","v":"2016-06-26"},{"$f":"jogo!C112","v":"Figueirense"},null,"x",null,{"$f":"jogo!E112","v":"Coritiba"},null,null,null,null,null,null,null,null,null,null,null,null,null,null,null,null,"","","","","","",0,0,0,0,0,0]
[{"$f":"jogo!B113","v":"2016-06-26"},{"$f":"jogo!C113","v":"América-MG"},null,"x",null,{"$f":"jogo!E113","v":"Atlético-MG"},null,null,null,null,null,null,null,null,null,null,null,null,null,null,null,null,"","","","","","",0,0,0,0,0,0]
[{"$f":"jogo!B114","v":"2016-06-26"},{"$f":"jogo!C114","v":"Sport"},null,"x",null,{"$f":"jogo!E114","v":"Chapecoense"},null,null,null,null,null,null,null,null,null,null,null,null,null,null,null,null,"","","","","","",0,0,0,0,0,0]
[{"$f":"jogo!B115","v":"2016-06-26"},{"$f":"jogo!C115","v":"Internacional"},null,"x",null,{"$f":"jogo!E115","v":"Botafogo"},null,null,null,null,null,null,null,null,null,null,null,null,null,null,null,null,"","","","","","",0,0,0,0,0,0]
[{"$f":"jogo!B116","v":"2016-06-26"},{"$f":"jogo!C116","v":"Cruzeiro"},null,"x",null,{"$f":"jogo!E116","v":"Palmeiras"},null,null,null,null,null,null,null,null,null,null,null,null,null,null,null,null,"","","","","","",0,0,0,0,0,0]
[{"$f":"jogo!B117","v":"2016-06-26"},{"$f":"jogo!C117","v":"Santos"},null,"x",null,{"$f":"jogo!E117","v":"São Paulo"},null,null,null,null,null,null,null,null,null,null,null,null,null,null,null,null,{"$f":"IF(C134&E134=\"\",\"\",IF(C134=E134,1,IF(C134>E134,3,IF(C134<E134,0))))","v":""},{"$f":"IF(C134&E134=\"\",\"\",IF(E134=C134,1,IF(C134<E134,3,IF(C134>E134,0))))","v":""},{"$f":"IF(C134&E134=\"\",\"\",IF(C134&E134<>\"\",1))","v":""},{"$f":"IF(C134&E134=\"\",\"\",IF(C134&E134<>\"\",1))","v":""},{"$f":"IF(C134=\"\",\"\",C134)","v":""},{"$f":"IF(E134=\"\",\"\",E134)","v":""},0,0,0,0,0,0]
[{"$f":"jogo!B118","v":"2016-06-26"},{"$f":"jogo!C118","v":"Corinthians"},null,"x",null,{"$f":"jogo!E118","v":"Santa Cruz"},null,null,null,null,null,null,null,null,null,null,null,null,null,null,null,null,"","","","","","",{"$f":"IF(W135=3,1,0)","v":0},{"$f":"IF(X135=3,1,0)","v":0},{"$f":"IF(W135=1,1,0)","v":0},{"$f":"IF(X135=1,1,0)","v":0},{"$f":"IF(W135=0,1,0)","v":0},{"$f":"IF(X135=0,1,0)","v":0}]
[{"$f":"jogo!B119","v":"2016-06-26"},{"$f":"jogo!C119","v":"Flamengo"},null,"x",null,{"$f":"jogo!E119","v":"Fluminense"},null,null,null,null,null,null,null,null,null,null,null,null,null,null,null,null,"","","","","","",0,0,0,0,0,0]
[{"$f":"jogo!B120","v":"2016-06-26"},{"$f":"jogo!C120","v":"Vitória"},null,"x",null,{"$f":"jogo!E120","v":"Ponte Preta"},null,null,null,null,null,null,null,null,null,null,null,null,null,null,null,null,"","","","","","",0,0,0,0,0,0]
["12 ª Rodada",null,null,null,null,null,null,null,null,null,null,null,null,null,null,null,null,null,null,null,null,null,"","","","","","",0,0,0,0,0,0]
["Data/Horário",null,null,null,null,null,"Local",null,null,null,null,null,null,null,null,null,null,null,null,null,null,null,"","","","","","",0,0,0,0,0,0]
[null,{"$f":"jogo!C121","v":"Coritiba"},null,"x",null,{"$f":"jogo!E121","v":"Atlético-PR"},null,null,null,null,null,null,null,null,null,null,null,null,null,null,null,null,"","","","","","",0,0,0,0,0,0]
[null,{"$f":"jogo!C122","v":"Chapecoense"},null,"x",null,{"$f":"jogo!E122","v":"Cruzeiro"},null,null,null,null,null,null,null,null,null,null,null,null,null,null,null,null,"","","","","","",0,0,0,0,0,0]
[null,{"$f":"jogo!C123","v":"América-MG"},null,"x",null,{"$f":"jogo!E123","v":"Corinthians"},null,null,null,null,null,null,null,null,null,null,null,null,null,null,null,null,"","","","","","",0,0,0,0,0,0]
[null,{"$f":"jogo!C124","v":"Santa Cruz"},null,"x",null,{"$f":"jogo!E124","v":"Ponte Preta"},null,null,null,null,null,null,null,null,null,null,null,null,null,null,null,null,"","","","","","",0,0,0,0,0,0]
[null,{"$f":"jogo!C125","v":"Grêmio"},null,"x",null,{"$f":"jogo!E125","v":"Santos"},null,null,null,null,null,null,null,null,null,null,null,null,null,null,null,null,"","","","","","",0,0,0,0,0,0]
[null,{"$f":"jogo!C126","v":"Atlético-MG"},null,"x",null,{"$f":"jogo!E126","v":"Botafogo"},null,null,null,null,null,null,null,null,null,null,null,null,null,null,null,null,"","","","","","",0,0,0,0,0,0]
[null,{"$f":"jogo!C127","v":"Palmeiras"},null,"x",null,{"$f":"jogo!E127","v":"Figueirense"},null,null,null,null,null,null,null,null,null,null,null,null,null,null,null,null,"","","","","","",0,0,0,0,0,0]
[null,{"$f":"jogo!C128","v":"São Paulo"},null,"x",null,{"$f":"jogo!E128","v":"Fluminense"},null,null,null,null,null,null,null,null,null,null,null,null,null,null,null,null,"","","","","","",0,0,0,0,0,0]
[null,{"$f":"jogo!C129","v":"Flamengo"},null,"x",null,{"$f":"jogo!E129","v":"Internacional"},null,null,null,null,null,null,null,null,null,null,null,null,null,null,null,null,"","","","","","",0,0,0,0,0,0]
[null,{"$f":"jogo!C130","v":"Vitória"},null,"x",null,{"$f":"jogo!E130","v":"Sport"},null,null,null,null,null,null,null,null,null,null,null,null,null,null,null,null,"","","","","","",0,0,0,0,0,0]
["13 ª Rodada",null,null,null,null,null,null,null,null,null,null,null,null,null,null,null,null,null,null,null,null,null,"","","","","","",0,0,0,0,0,0]
["Data/Horário",null,null,null,null,null,"Local",null,null,null,null,null,null,null,null,null,null,null,null,null,null,null,"","","","","","",0,0,0,0,0,0]
[null,{"$f":"jogo!C131","v":"Atlético-PR"},null,"x",null,{"$f":"jogo!E131","v":"América-MG"},null,null,null,null,null,null,null,null,null,null,null,null,null,null,null,null,"","","","","","",0,0,0,0,0,0]
[null,{"$f":"jogo!C132","v":"Figueirense"},null,"x",null,{"$f":"jogo!E132","v":"Atlético-MG"},null,null,null,null,null,null,null,null,null,null,null,null,null,null,null,null,"","","","","","",0,0,0,0,0,0]
[null,{"$f":"jogo!C133","v":"Ponte Preta"},null,"x",null,{"$f":"jogo!E133","v":"São Paulo"},null,null,null,null,null,null,null,null,null,null,null,null,null,null,null,null,"","","","","","",0,0,0,0,0,0]
[null,{"$f":"jogo!C134","v":"Sport"},null,"x",null,{"$f":"jogo!E134","v":"Palmeiras"},null,null,null,null,null,null,null,null,null,null,null,null,null,null,null,null,"","","","","","",0,0,0,0,0,0]
[null,{"$f":"jogo!C135","v":"Internacional"},null,"x",null,{"$f":"jogo!E135","v":"Grêmio"},null,null,null,null,null,null,null,null,null,null,null,null,null,null,null,null,"","","","","","",0,0,0,0,0,0]
[null,{"$f":"jogo!C136","v":"Cruzeiro"},null,"x",null,{"$f":"jogo!E136","v":"Vitória"},null,null,null,null,null,null,null,null,null,null,null,null,null,null,null,null,"","","","","","",0,0,0,0,0,0]
[null,{"$f":"jogo!C137","v":"Santos"},null,"x",null,{"$f":"jogo!E137","v":"Chapecoense"},null,null,null,null,null,null,null,null,null,null,null,null,null,null,null,null,"","","","","","",0,0,0,0,0,0]
[null,{"$f":"jogo!C138","v":"Corinthians"},null,"x",null,{"$f":"jogo!E138","v":"Flamengo"},null,null,null,null,null,null,null,null,null,null,null,null,null,null,null,null,"","","","","","",0,0,0,0,0,0]
[null,{"$f":"jogo!C139","v":"Fluminense"},null,"x",null,{"$f":"jogo!E139","v":"Coritiba"},null,null,null,null,null,null,null,null,null,null,null,null,null,null,null,null,"","","","","","",0,0,0,0,0,0]
[null,{"$f":"jogo!C140","v":"Botafogo"},null,"x",null,{"$f":"jogo!E140","v":"Santa Cruz"},null,null,null,null,null,null,null,null,null,null,null,null,null,null,null,null,"","","","","","",0,0,0,0,0,0]
["14 ª Rodada",null,null,null,null,null,null,null,null,null,null,null,null,null,null,null,null,null,null,null,null,null,"","","","","","",0,0,0,0,0,0]
["Data/Horário",null,null,null,null,null,"Local",null,null,null,null,null,null,null,null,null,null,null,null,null,null,null,"","","","","","",0,0,0,0,0,0]
[null,{"$f":"jogo!C141","v":"Coritiba"},null,"x",null,{"$f":"jogo!E141","v":"Botafogo"},null,null,null,null,null,null,null,null,null,null,null,null,null,null,null,null,"","","","","","",0,0,0,0,0,0]
[null,{"$f":"jogo!C142","v":"Chapecoense"},null,"x",null,{"$f":"jogo!E142","v":"Corinthians"},null,null,null,null,null,null,null,null,null,null,null,null,null,null,null,null,"","","","","","",0,0,0,0,0,0]
[null,{"$f":"jogo!C143","v":"Ponte Preta"},null,"x",null,{"$f":"jogo!E143","v":"Sport"},null,null,null,null,null,null,null,null,null,null,null,null,null,null,null,null,"","","","","","",0,0,0,0,0,0]
[null,{"$f":"jogo!C144","v":"Santa Cruz"},null,"x",null,{"$f":"jogo!E144","v":"Internacional"},null,null,null,null,null,null,null,null,null,null,null,null,null,null,null,null,"","","","","","",0,0,0,0,0,0]
[null,{"$f":"jogo!C145","v":"Grêmio"},null,"x",null,{"$f":"jogo!E145","v":"Figueirense"},null,null,null,null,null,null,null,null,null,null,null,null,null,null,null,null,"","","","","","",0,0,0,0,0,0]
[null,{"$f":"jogo!C146","v":"Cruzeiro"},null,"x",null,{"$f":"jogo!E146","v":"Atlético-PR"},null,null,null,null,null,null,null,null,null,null,null,null,null,null,null,null,"","","","","","",0,0,0,0,0,0]
[null,{"$f":"jogo!C147","v":"Palmeiras"},null,"x",null,{"$f":"jogo!E147","v":"Santos"},null,null,null,null,null,null,null,null,null,null,null,null,null,null,null,null,"","","","","","",0,0,0,0,0,0]
[null,{"$f":"jogo!C148","v":"São Paulo"},null,"x",null,{"$f":"jogo!E148","v":"América-MG"},null,null,null,null,null,null,null,null,null,null,null,null,null,null,null,null,"","","","","","",0,0,0,0,0,0]
[null,{"$f":"jogo!C149","v":"Flamengo"},null,"x",null,{"$f":"jogo!E149","v":"Atlético-MG"},null,null,null,null,null,null,null,null,null,null,null,null,null,null,null,null,"","","","","","",0,0,0,0,0,0]
[null,{"$f":"jogo!C150","v":"Vitória"},null,"x",null,{"$f":"jogo!E150","v":"Fluminense"},null,null,null,null,null,null,null,null,null,null,null,null,null,null,null,null,"","","","","","",0,0,0,0,0,0]
["15 ª Rodada",null,null,null,null,null,null,null,null,null,null,null,null,null,null,null,null,null,null,null,null,null,"","","","","","",0,0,0,0,0,0]
["Data/Horário",null,null,null,null,null,"Local",null,null,null,null,null,null,null,null,null,null,null,null,null,null,null,"","","","","","",0,0,0,0,0,0]
[null,{"$f":"jogo!C151","v":"Atlético-PR"},null,"x",null,{"$f":"jogo!E151","v":"Vitória"},null,null,null,null,null,null,null,null,null,null,null,null,null,null,null,null,"","","","","","",0,0,0,0,0,0]
[null,{"$f":"jogo!C152","v":"Figueirense"},null,"x",null,{"$f":"jogo!E152","v":"Chapecoense"},null,null,null,null,null,null,null,null,null,null,null,null,null,null,null,null,"","","","","","",0,0,0,0,0,0]
[null,{"$f":"jogo!C153","v":"América-MG"},null,"x",null,{"$f":"jogo!E153","v":"Santa Cruz"},null,null,null,null,null,null,null,null,null,null,null,null,null,null,null,null,"","","","","","",0,0,0,0,0,0]
[null,{"$f":"jogo!C154","v":"Sport"},null,"x",null,{"$f":"jogo!E154","v":"Grêmio"},null,null,null,null,null,null,null,null,null,null,null,null,null,null,null,null,"","","","","","",0,0,0,0,0,0]
[null,{"$f":"jogo!C155","v":"Internacional"},null,"x",null,{"$f":"jogo!E155","v":"Palmeiras"},null,null,null,null,null,null,null,null,null,null,null,null,null,null,null,null,"","","","","","",0,0,0,0,0,0]
[null,{"$f":"jogo!C156","v":"Atlético-MG"},null,"x",null,{"$f":"jogo!E156","v":"Coritiba"},null,null,null,null,null,null,null,null,null,null,null,null,null,null,null,null,"","","","","","",0,0,0,0,0,0]
[null,{"$f":"jogo!C157","v":"Santos"},null,"x",null,{"$f":"jogo!E157","v":"Ponte Preta"},null,null,null,null,null,null,null,null,null,null,null,null,null,null,null,null,"","","","","","",0,0,0,0,0,0]
[null,{"$f":"jogo!C158","v":"Corinthians"},null,"x",null,{"$f":"jogo!E158","v":"São Paulo"},null,null,null,null,null,null,null,null,null,null,null,null,null,null,null,null,"","","","","","",0,0,0,0,0,0]
[null,{"$f":"jogo!C159","v":"Fluminense"},null,"x",null,{"$f":"jogo!E159","v":"Cruzeiro"},null,null,null,null,null,null,null,null,null,null,null,null,null,null,null,null,"","","","","","",0,0,0,0,0,0]
[null,{"$f":"jogo!C160","v":"Botafogo"},null,"x",null,{"$f":"jogo!E160","v":"Flamengo"},null,null,null,null,null,null,null,null,null,null,null,null,null,null,null,null,"","","","","","",0,0,0,0,0,0]
["16 ª Rodada",null,null,null,null,null,null,null,null,null,null,null,null,null,null,null,null,null,null,null,null,null,"","","","","","",0,0,0,0,0,0]
["Data/Horário",null,null,null,null,null,"Local",null,null,null,null,null,null,null,null,null,null,null,null,null,null,null,"","","","","","",0,0,0,0,0,0]
[null,{"$f":"jogo!C161","v":"Atlético-PR"},null,"x",null,{"$f":"jogo!E161","v":"Fluminense"},null,null,null,null,null,null,null,null,null,null,null,null,null,null,null,null,"","","","","","",0,0,0,0,0,0]
[null,{"$f":"jogo!C162","v":"Chapecoense"},null,"x",null,{"$f":"jogo!E162","v":"Botafogo"},null,null,null,null,null,null,null,null,null,null,null,null,null,null,null,null,"","","","","","",0,0,0,0,0,0]
[null,{"$f":"jogo!C163","v":"Ponte Preta"},null,"x",null,{"$f":"jogo!E163","v":"Internacional"},null,null,null,null,null,null,null,null,null,null,null,null,null,null,null,null,"","","","","","",0,0,0,0,0,0]
[null,{"$f":"jogo!C164","v":"Santa Cruz"},null,"x",null,{"$f":"jogo!E164","v":"Coritiba"},null,null,null,null,null,null,null,null,null,null,null,null,null,null,null,null,"","","","","","",0,0,0,0,0,0]
[null,{"$f":"jogo!C165","v":"Grêmio"},null,"x",null,{"$f":"jogo!E165","v":"São Paulo"},null,null,null,null,null,null,null,null,null,null,null,null,null,null,null,null,"","","","","","",0,0,0,0,0,0]
[null,{"$f":"jogo!C166","v":"Cruzeiro"},null,"x",null,{"$f":"jogo!E166","v":"Sport"},null,null,null,null,null,null,null,null,null,null,null,null,null,null,null,null,"","","","","","",0,0,0,0,0,0]
[null,{"$f":"jogo!C167","v":"Palmeiras"},null,"x",null,{"$f":"jogo!E167","v":"Atlético-MG"},null,null,null,null,null,null,null,null,null,null,null,null,null,null,null,null,"","","","","","",0,0,0,0,0,0]
[null,{"$f":"jogo!C168","v":"Corinthians"},null,"x",null,{"$f":"jogo!E168","v":"Figueirense"},null,null,null,null,null,null,null,null,null,null,null,null,null,null,null,null,"","","","","","",0,0,0,0,0,0]
[null,{"$f":"jogo!C169","v":"Flamengo"},null,"x",null,{"$f":"jogo!E169","v":"América-MG"},null,null,null,null,null,null,null,null,null,null,null,null,null,null,null,null,"","","","","","",0,0,0,0,0,0]
[null,{"$f":"jogo!C170","v":"Vitória"},null,"x",null,{"$f":"jogo!E170","v":"Santos"},null,null,null,null,null,null,null,null,null,null,null,null,null,null,null,null,"","","","","","",0,0,0,0,0,0]
["17 ª Rodada",null,null,null,null,null,null,null,null,null,null,null,null,null,null,null,null,null,null,null,null,null,{"$f":"IF(C198&E198=\"\",\"\",IF(C198=E198,1,IF(C198>E198,3,IF(C198<E198,0))))","v":""},{"$f":"IF(C198&E198=\"\",\"\",IF(E198=C198,1,IF(C198<E198,3,IF(C198>E198,0))))","v":""},{"$f":"IF(C198&E198=\"\",\"\",IF(C198&E198<>\"\",1))","v":""},{"$f":"IF(C198&E198=\"\",\"\",IF(C198&E198<>\"\",1))","v":""},{"$f":"IF(C198=\"\",\"\",C198)","v":""},{"$f":"IF(E198=\"\",\"\",E198)","v":""},0,0,0,0,0,0]
["Data/Horário",null,null,null,null,null,"Local",null,null,null,null,null,null,null,null,null,null,null,null,null,null,null,"","","","","","",{"$f":"IF(W199=3,1,0)","v":0},{"$f":"IF(X199=3,1,0)","v":0},{"$f":"IF(W199=1,1,0)","v":0},{"$f":"IF(X199=1,1,0)","v":0},{"$f":"IF(W199=0,1,0)","v":0},{"$f":"IF(X199=0,1,0)","v":0}]
[null,{"$f":"jogo!C171","v":"Coritiba"},null,"x",null,{"$f":"jogo!E171","v":"Flamengo"},null,null,null,null,null,null,null,null,null,null,null,null,null,null,null,null,"","","","","","",0,0,0,0,0,0]
[null,{"$f":"jogo!C172","v":"Figueirense"},null,"x",null,{"$f":"jogo!E172","v":"Vitória"},null,null,null,null,null,null,null,null,null,null,null,null,null,null,null,null,"","","","","","",0,0,0,0,0,0]
[null,{"$f":"jogo!C173","v":"América-MG"},null,"x",null,{"$f":"jogo!E173","v":"Grêmio"},null,null,null,null,null,null,null,null,null,null,null,null,null,null,null,null,"","","","","","",0,0,0,0,0,0]
[null,{"$f":"jogo!C174","v":"Sport"},null,"x",null,{"$f":"jogo!E174","v":"Atlético-PR"},null,null,null,null,null,null,null,null,null,null,null,null,null,null,null,null,"","","","","","",0,0,0,0,0,0]
[null,{"$f":"jogo!C175","v":"Internacional"},null,"x",null,{"$f":"jogo!E175","v":"Corinthians"},null,null,null,null,null,null,null,null,null,null,null,null,null,null,null,null,"","","","","","",0,0,0,0,0,0]
[null,{"$f":"jogo!C176","v":"Atlético-MG"},null,"x",null,{"$f":"jogo!E176","v":"Santa Cruz"},null,null,null,null,null,null,null,null,null,null,null,null,null,null,null,null,"","","","","","",0,0,0,0,0,0]
[null,{"$f":"jogo!C177","v":"Santos"},null,"x",null,{"$f":"jogo!E177","v":"Cruzeiro"},null,null,null,null,null,null,null,null,null,null,null,null,null,null,null,null,"","","","","","",0,0,0,0,0,0]
[null,{"$f":"jogo!C178","v":"São Paulo"},null,"x",null,{"$f":"jogo!E178","v":"Chapecoense"},null,null,null,null,null,null,null,null,null,null,null,null,null,null,null,null,"","","","","","",0,0,0,0,0,0]
[null,{"$f":"jogo!C179","v":"Fluminense"},null,"x",null,{"$f":"jogo!E179","v":"Ponte Preta"},null,null,null,null,null,null,null,null,null,null,null,null,null,null,null,null,"","","","","","",0,0,0,0,0,0]
[null,{"$f":"jogo!C180","v":"Botafogo"},null,"x",null,{"$f":"jogo!E180","v":"Palmeiras"},null,null,null,null,null,null,null,null,null,null,null,null,null,null,null,null,"","","","","","",0,0,0,0,0,0]
["18 ª Rodada",null,null,null,null,null,null,null,null,null,null,null,null,null,null,null,null,null,null,null,null,null,"","","","","","",0,0,0,0,0,0]
["Data/Horário",null,null,null,null,null,"Local",null,null,null,null,null,null,null,null,null,null,null,null,null,null,null,"","","","","","",0,0,0,0,0,0]
[null,{"$f":"jogo!C181","v":"Atlético-PR"},null,"x",null,{"$f":"jogo!E181","v":"Corinthians"},null,null,null,null,null,null,null,null,null,null,null,null,null,null,null,null,"","","","","","",0,0,0,0,0,0]
[null,{"$f":"jogo!C182","v":"Chapecoense"},null,"x",null,{"$f":"jogo!E182","v":"Palmeiras"},null,null,null,null,null,null,null,null,null,null,null,null,null,null,null,null,"","","","","","",0,0,0,0,0,0]
[null,{"$f":"jogo!C183","v":"Ponte Preta"},null,"x",null,{"$f":"jogo!E183","v":"Botafogo"},null,null,null,null,null,null,null,null,null,null,null,null,null,null,null,null,"","","","","","",0,0,0,0,0,0]
[null,{"$f":"jogo!C184","v":"Sport"},null,"x",null,{"$f":"jogo!E184","v":"América-MG"},null,null,null,null,null,null,null,null,null,null,null,null,null,null,null,null,"","","","","","",0,0,0,0,0,0]
[null,{"$f":"jogo!C185","v":"Grêmio"},null,"x",null,{"$f":"jogo!E185","v":"Santa Cruz"},null,null,null,null,null,null,null,null,null,null,null,null,null,null,null,null,"","","","","","",0,0,0,0,0,0]
[null,{"$f":"jogo!C186","v":"Cruzeiro"},null,"x",null,{"$f":"jogo!E186","v":"Internacional"},null,null,null,null,null,null,null,null,null,null,null,null,null,null,null,null,"","","","","","",0,0,0,0,0,0]
[null,{"$f":"jogo!C187","v":"Santos"},null,"x",null,{"$f":"jogo!E187","v":"Flamengo"},null,null,null,null,null,null,null,null,null,null,null,null,null,null,null,null,"","","","","","",0,0,0,0,0,0]
[null,{"$f":"jogo!C188","v":"São Paulo"},null,"x",null,{"$f":"jogo!E188","v":"Atlético-MG"},null,null,null,null,null,null,null,null,null,null,null,null,null,null,null,null,"","","","","","",0,0,0,0,0,0]
[null,{"$f":"jogo!C189","v":"Fluminense"},null,"x",null,{"$f":"jogo!E189","v":"Figueirense"},null,null,null,null,null,null,null,null,null,null,null,null,null,null,null,null,"","","","","","",0,0,0,0,0,0]
[null,{"$f":"jogo!C190","v":"Vitória"},null,"x",null,{"$f":"jogo!E190","v":"Coritiba"},null,null,null,null,null,null,null,null,null,null,null,null,null,null,null,null,"","","","","","",0,0,0,0,0,0]
["19 ª Rodada",null,null,null,null,null,null,null,null,null,null,null,null,null,null,null,null,null,null,null,null,null,"","","","","","",0,0,0,0,0,0]
["Data/Horário",null,null,null,null,null,"Local",null,null,null,null,null,null,null,null,null,null,null,null,null,null,null,"","","","","","",0,0,0,0,0,0]
[null,{"$f":"jogo!C191","v":"Coritiba"},null,"x",null,{"$f":"jogo!E191","v":"Ponte Preta"},null,null,null,null,null,null,null,null,null,null,null,null,null,null,null,null,"","","","","","",0,0,0,0,0,0]
[null,{"$f":"jogo!C192","v":"Figueirense"},null,"x",null,{"$f":"jogo!E192","v":"Sport"},null,null,null,null,null,null,null,null,null,null,null,null,null,null,null,null,"","","","","","",0,0,0,0,0,0]
[null,{"$f":"jogo!C193","v":"América-MG"},null,"x",null,{"$f":"jogo!E193","v":"Santos"},null,null,null,null,null,null,null,null,null,null,null,null,null,null,null,null,"","","","","","",0,0,0,0,0,0]
[null,{"$f":"jogo!C194","v":"Santa Cruz"},null,"x",null,{"$f":"jogo!E194","v":"São Paulo"},null,null,null,null,null,null,null,null,null,null,null,null,null,null,null,null,"","","","","","",0,0,0,0,0,0]
[null,{"$f":"jogo!C195","v":"Internacional"},null,"x",null,{"$f":"jogo!E195","v":"Fluminense"},null,null,null,null,null,null,null,null,null,null,null,null,null,null,null,null,"","","","","","",0,0,0,0,0,0]
[null,{"$f":"jogo!C196","v":"Atlético-MG"},null,"x",null,{"$f":"jogo!E196","v":"Chapecoense"},null,null,null,null,null,null,null,null,null,null,null,null,null,null,null,null,"","","","","","",0,0,0,0,0,0]
[null,{"$f":"jogo!C197","v":"Palmeiras"},null,"x",null,{"$f":"jogo!E197","v":"Vitória"},null,null,null,null,null,null,null,null,null,null,null,null,null,null,null,null,"","","","","","",0,0,0,0,0,0]
[null,{"$f":"jogo!C198","v":"Corinthians"},null,"x",null,{"$f":"jogo!E198","v":"Cruzeiro"},null,null,null,null,null,null,null,null,null,null,null,null,null,null,null,null,"","","","","","",0,0,0,0,0,0]
[null,{"$f":"jogo!C199","v":"Flamengo"},null,"x",null,{"$f":"jogo!E199","v":"Atlético-PR"},null,null,null,null,null,null,null,null,null,null,null,null,null,null,null,null,"","","","","","",0,0,0,0,0,0]
[null,{"$f":"jogo!C200","v":"Botafogo"},null,"x",null,{"$f":"jogo!E200","v":"Grêmio"},null,null,null,null,null,null,null,null,null,null,null,null,null,null,null,null,"","","","","","",0,0,0,0,0,0]
["20 ª Rodada",null,null,null,null,null,null,null,null,null,null,null,null,null,null,null,null,null,null,null,null,null,"","","","","","",0,0,0,0,0,0]
["Data/Horário",null,null,null,null,null,"Local",null,null,null,null,null,null,null,null,null,null,null,null,null,null,null,"","","","","","",0,0,0,0,0,0]
[null,{"$f":"jogo!C201","v":"Atlético-PR"},null,"x",null,{"$f":"jogo!E201","v":"Palmeiras"},null,null,null,null,null,null,null,null,null,null,null,null,null,null,null,null,"","","","","","",0,0,0,0,0,0]
[null,{"$f":"jogo!C202","v":"Chapecoense"},null,"x",null,{"$f":"jogo!E202","v":"Internacional"},null,null,null,null,null,null,null,null,null,null,null,null,null,null,null,null,"","","","","","",0,0,0,0,0,0]
[null,{"$f":"jogo!C203","v":"Ponte Preta"},null,"x",null,{"$f":"jogo!E203","v":"Figueirense"},null,null,null,null,null,null,null,null,null,null,null,null,null,null,null,null,"","","","","","",0,0,0,0,0,0]
[null,{"$f":"jogo!C204","v":"Sport"},null,"x",null,{"$f":"jogo!E204","v":"Flamengo"},null,null,null,null,null,null,null,null,null,null,null,null,null,null,null,null,"","","","","","",0,0,0,0,0,0]
[null,{"$f":"jogo!C205","v":"Grêmio"},null,"x",null,{"$f":"jogo!E205","v":"Corinthians"},null,null,null,null,null,null,null,null,null,null,null,null,null,null,null,null,"","","","","","",0,0,0,0,0,0]
[null,{"$f":"jogo!C206","v":"Cruzeiro"},null,"x",null,{"$f":"jogo!E206","v":"Coritiba"},null,null,null,null,null,null,null,null,null,null,null,null,null,null,null,null,"","","","","","",0,0,0,0,0,0]
[null,{"$f":"jogo!C207","v":"Santos"},null,"x",null,{"$f":"jogo!E207","v":"Atlético-MG"},null,null,null,null,null,null,null,null,null,null,null,null,null,null,null,null,"","","","","","",0,0,0,0,0,0]
[null,{"$f":"jogo!C208","v":"São Paulo"},null,"x",null,{"$f":"jogo!E208","v":"Botafogo"},null,null,null,null,null,null,null,null,null,null,null,null,null,null,null,null,"","","","","","",0,0,0,0,0,0]
[null,{"$f":"jogo!C209","v":"Fluminense"},null,"x",null,{"$f":"jogo!E209","v":"América-MG"},null,null,null,null,null,null,null,null,null,null,null,null,null,null,null,null,"","","","","","",0,0,0,0,0,0]
[null,{"$f":"jogo!C210","v":"Vitória"},null,"x",null,{"$f":"jogo!E210","v":"Santa Cruz"},null,null,null,null,null,null,null,null,null,null,null,null,null,null,null,null,"","","","","","",0,0,0,0,0,0]
["21 ª Rodada",null,null,null,null,null,null,null,null,null,null,null,null,null,null,null,null,null,null,null,null,null,"","","","","","",0,0,0,0,0,0]
["Data/Horário",null,null,null,null,null,"Local",null,null,null,null,null,null,null,null,null,null,null,null,null,null,null,"","","","","","",0,0,0,0,0,0]
[null,{"$f":"jogo!C211","v":"Coritiba"},null,"x",null,{"$f":"jogo!E211","v":"Santos"},null,null,null,null,null,null,null,null,null,null,null,null,null,null,null,null,"","","","","","",0,0,0,0,0,0]
[null,{"$f":"jogo!C212","v":"Figueirense"},null,"x",null,{"$f":"jogo!E212","v":"Cruzeiro"},null,null,null,null,null,null,null,null,null,null,null,null,null,null,null,null,"","","","","","",0,0,0,0,0,0]
[null,{"$f":"jogo!C213","v":"América-MG"},null,"x",null,{"$f":"jogo!E213","v":"Chapecoense"},null,null,null,null,null,null,null,null,null,null,null,null,null,null,null,null,"","","","","","",0,0,0,0,0,0]
[null,{"$f":"jogo!C214","v":"Santa Cruz"},null,"x",null,{"$f":"jogo!E214","v":"Fluminense"},null,null,null,null,null,null,null,null,null,null,null,null,null,null,null,null,"","","","","","",0,0,0,0,0,0]
[null,{"$f":"jogo!C215","v":"Internacional"},null,"x",null,{"$f":"jogo!E215","v":"São Paulo"},null,null,null,null,null,null,null,null,null,null,null,null,null,null,null,null,"","","","","","",0,0,0,0,0,0]
[null,{"$f":"jogo!C216","v":"Atlético-MG"},null,"x",null,{"$f":"jogo!E216","v":"Atlético-PR"},null,null,null,null,null,null,null,null,null,null,null,null,null,null,null,null,"","","","","","",0,0,0,0,0,0]
[null,{"$f":"jogo!C217","v":"Palmeiras"},null,"x",null,{"$f":"jogo!E217","v":"Ponte Preta"},null,null,null,null,null,null,null,null,null,null,null,null,null,null,null,null,"","","","","","",0,0,0,0,0,0]
[null,{"$f":"jogo!C218","v":"Corinthians"},null,"x",null,{"$f":"jogo!E218","v":"Vitória"},null,null,null,null,null,null,null,null,null,null,null,null,null,null,null,null,"","","","","","",0,0,0,0,0,0]
[null,{"$f":"jogo!C219","v":"Flamengo"},null,"x",null,{"$f":"jogo!E219","v":"Grêmio"},null,null,null,null,null,null,null,null,null,null,null,null,null,null,null,null,"","","","","","",0,0,0,0,0,0]
[null,{"$f":"jogo!C220","v":"Botafogo"},null,"x",null,{"$f":"jogo!E220","v":"Sport"},null,null,null,null,null,null,null,null,null,null,null,null,null,null,null,null,"","","","","","",0,0,0,0,0,0]
["22 ª Rodada",null,null,null,null,null,null,null,null,null,null,null,null,null,null,null,null,null,null,null,null,null,"","","","","","",0,0,0,0,0,0]
["Data/Horário",null,null,null,null,null,"Local",null,null,null,null,null,null,null,null,null,null,null,null,null,null,null,"","","","","","",0,0,0,0,0,0]
[null,{"$f":"jogo!C221","v":"Atlético-PR"},null,"x",null,{"$f":"jogo!E221","v":"Botafogo"},null,null,null,null,null,null,null,null,null,null,null,null,null,null,null,null,"","","","","","",0,0,0,0,0,0]
[null,{"$f":"jogo!C222","v":"Chapecoense"},null,"x",null,{"$f":"jogo!E222","v":"Flamengo"},null,null,null,null,null,null,null,null,null,null,null,null,null,null,null,null,"","","","","","",0,0,0,0,0,0]
[null,{"$f":"jogo!C223","v":"Ponte Preta"},null,"x",null,{"$f":"jogo!E223","v":"Corinthians"},null,null,null,null,null,null,null,null,null,null,null,null,null,null,null,null,{"$f":"IF(C262&E262=\"\",\"\",IF(C262=E262,1,IF(C262>E262,3,IF(C262<E262,0))))","v":""},{"$f":"IF(C262&E262=\"\",\"\",IF(E262=C262,1,IF(C262<E262,3,IF(C262>E262,0))))","v":""},{"$f":"IF(C262&E262=\"\",\"\",IF(C262&E262<>\"\",1))","v":""},{"$f":"IF(C262&E262=\"\",\"\",IF(C262&E262<>\"\",1))","v":""},{"$f":"IF(C262=\"\",\"\",C262)","v":""},{"$f":"IF(E262=\"\",\"\",E262)","v":""},0,0,0,0,0,0]
[null,{"$f":"jogo!C224","v":"Sport"},null,"x",null,{"$f":"jogo!E224","v":"Internacional"},null,null,null,null,null,null,null,null,null,null,null,null,null,null,null,null,"","","","","","",{"$f":"IF(W263=3,1,0)","v":0},{"$f":"IF(X263=3,1,0)","v":0},{"$f":"IF(W263=1,1,0)","v":0},{"$f":"IF(X263=1,1,0)","v":0},{"$f":"IF(W263=0,1,0)","v":0},{"$f":"IF(X263=0,1,0)","v":0}]
[null,{"$f":"jogo!C225","v":"Grêmio"},null,"x",null,{"$f":"jogo!E225","v":"Atlético-MG"},null,null,null,null,null,null,null,null,null,null,null,null,null,null,null,null,"","","","","","",0,0,0,0,0,0]
[null,{"$f":"jogo!C226","v":"Cruzeiro"},null,"x",null,{"$f":"jogo!E226","v":"Santa Cruz"},null,null,null,null,null,null,null,null,null,null,null,null,null,null,null,null,"","","","","","",0,0,0,0,0,0]
[null,{"$f":"jogo!C227","v":"Santos"},null,"x",null,{"$f":"jogo!E227","v":"Figueirense"},null,null,null,null,null,null,null,null,null,null,null,null,null,null,null,null,"","","","","","",0,0,0,0,0,0]
[null,{"$f":"jogo!C228","v":"São Paulo"},null,"x",null,{"$f":"jogo!E228","v":"Coritiba"},null,null,null,null,null,null,null,null,null,null,null,null,null,null,null,null,"","","","","","",0,0,0,0,0,0]
[null,{"$f":"jogo!C229","v":"Fluminense"},null,"x",null,{"$f":"jogo!E229","v":"Palmeiras"},null,null,null,null,null,null,null,null,null,null,null,null,null,null,null,null,"","","","","","",0,0,0,0,0,0]
[null,{"$f":"jogo!C230","v":"Vitória"},null,"x",null,{"$f":"jogo!E230","v":"América-MG"},null,null,null,null,null,null,null,null,null,null,null,null,null,null,null,null,"","","","","","",0,0,0,0,0,0]
["23 ª Rodada",null,null,null,null,null,null,null,null,null,null,null,null,null,null,null,null,null,null,null,null,null,"","","","","","",0,0,0,0,0,0]
["Data/Horário",null,null,null,null,null,"Local",null,null,null,null,null,null,null,null,null,null,null,null,null,null,null,"","","","","","",0,0,0,0,0,0]
[null,{"$f":"jogo!C231","v":"Coritiba"},null,"x",null,{"$f":"jogo!E231","v":"Grêmio"},null,null,null,null,null,null,null,null,null,null,null,null,null,null,null,null,"","","","","","",0,0,0,0,0,0]
[null,{"$f":"jogo!C232","v":"Figueirense"},null,"x",null,{"$f":"jogo!E232","v":"Atlético-PR"},null,null,null,null,null,null,null,null,null,null,null,null,null,null,null,null,"","","","","","",0,0,0,0,0,0]
[null,{"$f":"jogo!C233","v":"América-MG"},null,"x",null,{"$f":"jogo!E233","v":"Cruzeiro"},null,null,null,null,null,null,null,null,null,null,null,null,null,null,null,null,"","","","","","",0,0,0,0,0,0]
[null,{"$f":"jogo!C234","v":"Santa Cruz"},null,"x",null,{"$f":"jogo!E234","v":"Chapecoense"},null,null,null,null,null,null,null,null,null,null,null,null,null,null,null,null,"","","","","","",0,0,0,0,0,0]
[null,{"$f":"jogo!C235","v":"Internacional"},null,"x",null,{"$f":"jogo!E235","v":"Santos"},null,null,null,null,null,null,null,null,null,null,null,null,null,null,null,null,"","","","","","",0,0,0,0,0,0]
[null,{"$f":"jogo!C236","v":"Atlético-MG"},null,"x",null,{"$f":"jogo!E236","v":"Vitória"},null,null,null,null,null,null,null,null,null,null,null,null,null,null,null,null,"","","","","","",0,0,0,0,0,0]
[null,{"$f":"jogo!C237","v":"Palmeiras"},null,"x",null,{"$f":"jogo!E237","v":"São Paulo"},null,null,null,null,null,null,null,null,null,null,null,null,null,null,null,null,"","","","","","",0,0,0,0,0,0]
[null,{"$f":"jogo!C238","v":"Corinthians"},null,"x",null,{"$f":"jogo!E238","v":"Sport"},null,null,null,null,null,null,null,null,null,null,null,null,null,null,null,null,"","","","","","",0,0,0,0,0,0]
[null,{"$f":"jogo!C239","v":"Flamengo"},null,"x",null,{"$f":"jogo!E239","v":"Ponte Preta"},null,null,null,null,null,null,null,null,null,null,null,null,null,null,null,null,"","","","","","",0,0,0,0,0,0]
[null,{"$f":"jogo!C240","v":"Botafogo"},null,"x",null,{"$f":"jogo!E240","v":"Fluminense"},null,null,null,null,null,null,null,null,null,null,null,null,null,null,null,null,"","","","","","",0,0,0,0,0,0]
["24 ª Rodada",null,null,null,null,null,null,null,null,null,null,null,null,null,null,null,null,null,null,null,null,null,"","","","","","",0,0,0,0,0,0]
["Data/Horário",null,null,null,null,null,"Local",null,null,null,null,null,null,null,null,null,null,null,null,null,null,null,"","","","","","",0,0,0,0,0,0]
[null,{"$f":"jogo!C241","v":"Atlético-PR"},null,"x",null,{"$f":"jogo!E241","v":"Internacional"},null,null,null,null,null,null,null,null,null,null,null,null,null,null,null,null,"","","","","","",0,0,0,0,0,0]
[null,{"$f":"jogo!C242","v":"Chapecoense"},null,"x",null,{"$f":"jogo!E242","v":"Coritiba"},null,null,null,null,null,null,null,null,null,null,null,null,null,null,null,null,"","","","","","",0,0,0,0,0,0]
[null,{"$f":"jogo!C243","v":"Ponte Preta"},null,"x",null,{"$f":"jogo!E243","v":"América-MG"},null,null,null,null,null,null,null,null,null,null,null,null,null,null,null,null,"","","","","","",0,0,0,0,0,0]
[null,{"$f":"jogo!C244","v":"Sport"},null,"x",null,{"$f":"jogo!E244","v":"Santa Cruz"},null,null,null,null,null,null,null,null,null,null,null,null,null,null,null,null,"","","","","","",0,0,0,0,0,0]
[null,{"$f":"jogo!C245","v":"Grêmio"},null,"x",null,{"$f":"jogo!E245","v":"Palmeiras"},null,null,null,null,null,null,null,null,null,null,null,null,null,null,null,null,"","","","","","",0,0,0,0,0,0]
[null,{"$f":"jogo!C246","v":"Cruzeiro"},null,"x",null,{"$f":"jogo!E246","v":"Botafogo"},null,null,null,null,null,null,null,null,null,null,null,null,null,null,null,null,"","","","","","",0,0,0,0,0,0]
[null,{"$f":"jogo!C247","v":"Santos"},null,"x",null,{"$f":"jogo!E247","v":"Corinthians"},null,null,null,null,null,null,null,null,null,null,null,null,null,null,null,null,"","","","","","",0,0,0,0,0,0]
[null,{"$f":"jogo!C248","v":"São Paulo"},null,"x",null,{"$f":"jogo!E248","v":"Figueirense"},null,null,null,null,null,null,null,null,null,null,null,null,null,null,null,null,"","","","","","",0,0,0,0,0,0]
[null,{"$f":"jogo!C249","v":"Fluminense"},null,"x",null,{"$f":"jogo!E249","v":"Atlético-MG"},null,null,null,null,null,null,null,null,null,null,null,null,null,null,null,null,"","","","","","",0,0,0,0,0,0]
[null,{"$f":"jogo!C250","v":"Vitória"},null,"x",null,{"$f":"jogo!E250","v":"Flamengo"},null,null,null,null,null,null,null,null,null,null,null,null,null,null,null,null,"","","","","","",0,0,0,0,0,0]
["25 ª Rodada",null,null,null,null,null,null,null,null,null,null,null,null,null,null,null,null,null,null,null,null,null,"","","","","","",0,0,0,0,0,0]
["Data/Horário",null,null,null,null,null,"Local",null,null,null,null,null,null,null,null,null,null,null,null,null,null,null,"","","","","","",0,0,0,0,0,0]
[null,{"$f":"jogo!C251","v":"Coritiba"},null,"x",null,{"$f":"jogo!E251","v":"Corinthians"},null,null,null,null,null,null,null,null,null,null,null,null,null,null,null,null,"","","","","","",0,0,0,0,0,0]
[null,{"$f":"jogo!C252","v":"Figueirense"},null,"x",null,{"$f":"jogo!E252","v":"América-MG"},null,null,null,null,null,null,null,null,null,null,null,null,null,null,null,null,"","","","","","",0,0,0,0,0,0]
[null,{"$f":"jogo!C253","v":"Ponte Preta"},null,"x",null,{"$f":"jogo!E253","v":"Grêmio"},null,null,null,null,null,null,null,null,null,null,null,null,null,null,null,null,"","","","","","",0,0,0,0,0,0]
[null,{"$f":"jogo!C254","v":"Santa Cruz"},null,"x",null,{"$f":"jogo!E254","v":"Atlético-PR"},null,null,null,null,null,null,null,null,null,null,null,null,null,null,null,null,"","","","","","",0,0,0,0,0,0]
[null,{"$f":"jogo!C255","v":"Internacional"},null,"x",null,{"$f":"jogo!E255","v":"Vitória"},null,null,null,null,null,null,null,null,null,null,null,null,null,null,null,null,"","","","","","",0,0,0,0,0,0]
[null,{"$f":"jogo!C256","v":"Atlético-MG"},null,"x",null,{"$f":"jogo!E256","v":"Sport"},null,null,null,null,null,null,null,null,null,null,null,null,null,null,null,null,"","","","","","",0,0,0,0,0,0]
[null,{"$f":"jogo!C257","v":"Palmeiras"},null,"x",null,{"$f":"jogo!E257","v":"Flamengo"},null,null,null,null,null,null,null,null,null,null,null,null,null,null,null,null,"","","","","","",0,0,0,0,0,0]
[null,{"$f":"jogo!C258","v":"São Paulo"},null,"x",null,{"$f":"jogo!E258","v":"Cruzeiro"},null,null,null,null,null,null,null,null,null,null,null,null,null,null,null,null,"","","","","","",0,0,0,0,0,0]
[null,{"$f":"jogo!C259","v":"Fluminense"},null,"x",null,{"$f":"jogo!E259","v":"Chapecoense"},null,null,null,null,null,null,null,null,null,null,null,null,null,null,null,null,"","","","","","",0,0,0,0,0,0]
[null,{"$f":"jogo!C260","v":"Botafogo"},null,"x",null,{"$f":"jogo!E260","v":"Santos"},null,null,null,null,null,null,null,null,null,null,null,null,null,null,null,null,"","","","","","",0,0,0,0,0,0]
["26 ª Rodada",null,null,null,null,null,null,null,null,null,null,null,null,null,null,null,null,null,null,null,null,null,"","","","","","",0,0,0,0,0,0]
["Data/Horário",null,null,null,null,null,"Local",null,null,null,null,null,null,null,null,null,null,null,null,null,null,null,"","","","","","",0,0,0,0,0,0]
[null,{"$f":"jogo!C261","v":"Atlético-PR"},null,"x",null,{"$f":"jogo!E261","v":"São Paulo"},null,null,null,null,null,null,null,null,null,null,null,null,null,null,null,null,"","","","","","",0,0,0,0,0,0]
[null,{"$f":"jogo!C262","v":"Chapecoense"},null,"x",null,{"$f":"jogo!E262","v":"Ponte Preta"},null,null,null,null,null,null,null,null,null,null,null,null,null,null,null,null,"","","","","","",0,0,0,0,0,0]
[null,{"$f":"jogo!C263","v":"América-MG"},null,"x",null,{"$f":"jogo!E263","v":"Internacional"},null,null,null,null,null,null,null,null,null,null,null,null,null,null,null,null,"","","","","","",0,0,0,0,0,0]
[null,{"$f":"jogo!C264","v":"Sport"},null,"x",null,{"$f":"jogo!E264","v":"Coritiba"},null,null,null,null,null,null,null,null,null,null,null,null,null,null,null,null,"","","","","","",0,0,0,0,0,0]
[null,{"$f":"jogo!C265","v":"Grêmio"},null,"x",null,{"$f":"jogo!E265","v":"Fluminense"},null,null,null,null,null,null,null,null,null,null,null,null,null,null,null,null,"","","","","","",0,0,0,0,0,0]
[null,{"$f":"jogo!C266","v":"Cruzeiro"},null,"x",null,{"$f":"jogo!E266","v":"Atlético-MG"},null,null,null,null,null,null,null,null,null,null,null,null,null,null,null,null,"","","","","","",0,0,0,0,0,0]
[null,{"$f":"jogo!C267","v":"Santos"},null,"x",null,{"$f":"jogo!E267","v":"Santa Cruz"},null,null,null,null,null,null,null,null,null,null,null,null,null,null,null,null,"","","","","","",0,0,0,0,0,0]
[null,{"$f":"jogo!C268","v":"Corinthians"},null,"x",null,{"$f":"jogo!E268","v":"Palmeiras"},null,null,null,null,null,null,null,null,null,null,null,null,null,null,null,null,"","","","","","",0,0,0,0,0,0]
[null,{"$f":"jogo!C269","v":"Flamengo"},null,"x",null,{"$f":"jogo!E269","v":"Figueirense"},null,null,null,null,null,null,null,null,null,null,null,null,null,null,null,null,"","","","","","",0,0,0,0,0,0]
[null,{"$f":"jogo!C270","v":"Vitória"},null,"x",null,{"$f":"jogo!E270","v":"Botafogo"},null,null,null,null,null,null,null,null,null,null,null,null,null,null,null,null,"","","","","","",0,0,0,0,0,0]
["27 ª Rodada",null,null,null,null,null,null,null,null,null,null,null,null,null,null,null,null,null,null,null,null,null,"","","","","","",0,0,0,0,0,0]
["Data/Horário",null,null,null,null,null,"Local",null,null,null,null,null,null,null,null,null,null,null,null,null,null,null,"","","","","","",0,0,0,0,0,0]
[null,{"$f":"jogo!C271","v":"Atlético-PR"},null,"x",null,{"$f":"jogo!E271","v":"Ponte Preta"},null,null,null,null,null,null,null,null,null,null,null,null,null,null,null,null,"","","","","","",0,0,0,0,0,0]
[null,{"$f":"jogo!C272","v":"Figueirense"},null,"x",null,{"$f":"jogo!E272","v":"Santa Cruz"},null,null,null,null,null,null,null,null,null,null,null,null,null,null,null,null,"","","","","","",0,0,0,0,0,0]
[null,{"$f":"jogo!C273","v":"América-MG"},null,"x",null,{"$f":"jogo!E273","v":"Botafogo"},null,null,null,null,null,null,null,null,null,null,null,null,null,null,null,null,"","","","","","",0,0,0,0,0,0]
[null,{"$f":"jogo!C274","v":"Sport"},null,"x",null,{"$f":"jogo!E274","v":"Santos"},null,null,null,null,null,null,null,null,null,null,null,null,null,null,null,null,"","","","","","",0,0,0,0,0,0]
[null,{"$f":"jogo!C275","v":"Grêmio"},null,"x",null,{"$f":"jogo!E275","v":"Chapecoense"},null,null,null,null,null,null,null,null,null,null,null,null,null,null,null,null,"","","","","","",0,0,0,0,0,0]
[null,{"$f":"jogo!C276","v":"Atlético-MG"},null,"x",null,{"$f":"jogo!E276","v":"Internacional"},null,null,null,null,null,null,null,null,null,null,null,null,null,null,null,null,"","","","","","",0,0,0,0,0,0]
[null,{"$f":"jogo!C277","v":"Palmeiras"},null,"x",null,{"$f":"jogo!E277","v":"Coritiba"},null,null,null,null,null,null,null,null,null,null,null,null,null,null,null,null,{"$f":"IF(C326&E326=\"\",\"\",IF(C326=E326,1,IF(C326>E326,3,IF(C326<E326,0))))","v":""},{"$f":"IF(C326&E326=\"\",\"\",IF(E326=C326,1,IF(C326<E326,3,IF(C326>E326,0))))","v":""},{"$f":"IF(C326&E326=\"\",\"\",IF(C326&E326<>\"\",1))","v":""},{"$f":"IF(C326&E326=\"\",\"\",IF(C326&E326<>\"\",1))","v":""},{"$f":"IF(C326=\"\",\"\",C326)","v":""},{"$f":"IF(E326=\"\",\"\",E326)","v":""},0,0,0,0,0,0]
[null,{"$f":"jogo!C278","v":"Corinthians"},null,"x",null,{"$f":"jogo!E278","v":"Fluminense"},null,null,null,null,null,null,null,null,null,null,null,null,null,null,null,null,"","","","","","",{"$f":"IF(W327=3,1,0)","v":0},{"$f":"IF(X327=3,1,0)","v":0},{"$f":"IF(W327=1,1,0)","v":0},{"$f":"IF(X327=1,1,0)","v":0},{"$f":"IF(W327=0,1,0)","v":0},{"$f":"IF(X327=0,1,0)","v":0}]
[null,{"$f":"jogo!C279","v":"Flamengo"},null,"x",null,{"$f":"jogo!E279","v":"Cruzeiro"},null,null,null,null,null,null,null,null,null,null,null,null,null,null,null,null,"","","","","","",0,0,0,0,0,0]
[null,{"$f":"jogo!C280","v":"Vitória"},null,"x",null,{"$f":"jogo!E280","v":"São Paulo"},null,null,null,null,null,null,null,null,null,null,null,null,null,null,null,null,"","","","","","",0,0,0,0,0,0]
["28 ª Rodada",null,null,null,null,null,null,null,null,null,null,null,null,null,null,null,null,null,null,null,null,null,"","","","","","",0,0,0,0,0,0]
["Data/Horário",null,null,null,null,null,"Local",null,null,null,null,null,null,null,null,null,null,null,null,null,null,null,"","","","","","",0,0,0,0,0,0]
[null,{"$f":"jogo!C281","v":"Coritiba"},null,"x",null,{"$f":"jogo!E281","v":"América-MG"},null,null,null,null,null,null,null,null,null,null,null,null,null,null,null,null,"","","","","","",0,0,0,0,0,0]
[null,{"$f":"jogo!C282","v":"Chapecoense"},null,"x",null,{"$f":"jogo!E282","v":"Vitória"},null,null,null,null,null,null,null,null,null,null,null,null,null,null,null,null,"","","","","","",0,0,0,0,0,0]
[null,{"$f":"jogo!C283","v":"Ponte Preta"},null,"x",null,{"$f":"jogo!E283","v":"Atlético-MG"},null,null,null,null,null,null,null,null,null,null,null,null,null,null,null,null,"","","","","","",0,0,0,0,0,0]
[null,{"$f":"jogo!C284","v":"Santa Cruz"},null,"x",null,{"$f":"jogo!E284","v":"Palmeiras"},null,null,null,null,null,null,null,null,null,null,null,null,null,null,null,null,"","","","","","",0,0,0,0,0,0]
[null,{"$f":"jogo!C285","v":"Internacional"},null,"x",null,{"$f":"jogo!E285","v":"Figueirense"},null,null,null,null,null,null,null,null,null,null,null,null,null,null,null,null,"","","","","","",0,0,0,0,0,0]
[null,{"$f":"jogo!C286","v":"Cruzeiro"},null,"x",null,{"$f":"jogo!E286","v":"Grêmio"},null,null,null,null,null,null,null,null,null,null,null,null,null,null,null,null,"","","","","","",0,0,0,0,0,0]
[null,{"$f":"jogo!C287","v":"Santos"},null,"x",null,{"$f":"jogo!E287","v":"Atlético-PR"},null,null,null,null,null,null,null,null,null,null,null,null,null,null,null,null,"","","","","","",0,0,0,0,0,0]
[null,{"$f":"jogo!C288","v":"São Paulo"},null,"x",null,{"$f":"jogo!E288","v":"Flamengo"},null,null,null,null,null,null,null,null,null,null,null,null,null,null,null,null,"","","","","","",0,0,0,0,0,0]
[null,{"$f":"jogo!C289","v":"Fluminense"},null,"x",null,{"$f":"jogo!E289","v":"Sport"},null,null,null,null,null,null,null,null,null,null,null,null,null,null,null,null,"","","","","","",0,0,0,0,0,0]
[null,{"$f":"jogo!C290","v":"Botafogo"},null,"x",null,{"$f":"jogo!E290","v":"Corinthians"},null,null,null,null,null,null,null,null,null,null,null,null,null,null,null,null,"","","","","","",0,0,0,0,0,0]
["29 ª Rodada",null,null,null,null,null,null,null,null,null,null,null,null,null,null,null,null,null,null,null,null,null,"","","","","","",0,0,0,0,0,0]
["Data/Horário",null,null,null,null,null,"Local",null,null,null,null,null,null,null,null,null,null,null,null,null,null,null,"","","","","","",0,0,0,0,0,0]
[null,{"$f":"jogo!C291","v":"Atlético-PR"},null,"x",null,{"$f":"jogo!E291","v":"Chapecoense"},null,null,null,null,null,null,null,null,null,null,null,null,null,null,null,null,"","","","","","",0,0,0,0,0,0]
[null,{"$f":"jogo!C292","v":"Figueirense"},null,"x",null,{"$f":"jogo!E292","v":"Botafogo"},null,null,null,null,null,null,null,null,null,null,null,null,null,null,null,null,"","","","","","",0,0,0,0,0,0]
[null,{"$f":"jogo!C293","v":"América-MG"},null,"x",null,{"$f":"jogo!E293","v":"Palmeiras"},null,null,null,null,null,null,null,null,null,null,null,null,null,null,null,null,"","","","","","",0,0,0,0,0,0]
[null,{"$f":"jogo!C294","v":"Sport"},null,"x",null,{"$f":"jogo!E294","v":"São Paulo"},null,null,null,null,null,null,null,null,null,null,null,null,null,null,null,null,"","","","","","",0,0,0,0,0,0]
[null,{"$f":"jogo!C295","v":"Internacional"},null,"x",null,{"$f":"jogo!E295","v":"Coritiba"},null,null,null,null,null,null,null,null,null,null,null,null,null,null,null,null,"","","","","","",0,0,0,0,0,0]
[null,{"$f":"jogo!C296","v":"Cruzeiro"},null,"x",null,{"$f":"jogo!E296","v":"Ponte Preta"},null,null,null,null,null,null,null,null,null,null,null,null,null,null,null,null,"","","","","","",0,0,0,0,0,0]
[null,{"$f":"jogo!C297","v":"Santos"},null,"x",null,{"$f":"jogo!E297","v":"Fluminense"},null,null,null,null,null,null,null,null,null,null,null,null,null,null,null,null,"","","","","","",0,0,0,0,0,0]
[null,{"$f":"jogo!C298","v":"Corinthians"},null,"x",null,{"$f":"jogo!E298","v":"Atlético-MG"},null,null,null,null,null,null,null,null,null,null,null,null,null,null,null,null,"","","","","","",0,0,0,0,0,0]
[null,{"$f":"jogo!C299","v":"Flamengo"},null,"x",null,{"$f":"jogo!E299","v":"Santa Cruz"},null,null,null,null,null,null,null,null,null,null,null,null,null,null,null,null,"","","","","","",0,0,0,0,0,0]
[null,{"$f":"jogo!C300","v":"Vitória"},null,"x",null,{"$f":"jogo!E300","v":"Grêmio"},null,null,null,null,null,null,null,null,null,null,null,null,null,null,null,null,"","","","","","",0,0,0,0,0,0]
["30 ª Rodada",null,null,null,null,null,null,null,null,null,null,null,null,null,null,null,null,null,null,null,null,null,"","","","","","",0,0,0,0,0,0]
["Data/Horário",null,null,null,null,null,"Local",null,null,null,null,null,null,null,null,null,null,null,null,null,null,null,"","","","","","",0,0,0,0,0,0]
[null,{"$f":"jogo!C301","v":"Coritiba"},null,"x",null,{"$f":"jogo!E301","v":"Figueirense"},null,null,null,null,null,null,null,null,null,null,null,null,null,null,null,null,"","","","","","",0,0,0,0,0,0]
[null,{"$f":"jogo!C302","v":"Chapecoense"},null,"x",null,{"$f":"jogo!E302","v":"Sport"},null,null,null,null,null,null,null,null,null,null,null,null,null,null,null,null,"","","","","","",0,0,0,0,0,0]
[null,{"$f":"jogo!C303","v":"Ponte Preta"},null,"x",null,{"$f":"jogo!E303","v":"Vitória"},null,null,null,null,null,null,null,null,null,null,null,null,null,null,null,null,"","","","","","",0,0,0,0,0,0]
[null,{"$f":"jogo!C304","v":"Santa Cruz"},null,"x",null,{"$f":"jogo!E304","v":"Corinthians"},null,null,null,null,null,null,null,null,null,null,null,null,null,null,null,null,"","","","","","",0,0,0,0,0,0]
[null,{"$f":"jogo!C305","v":"Grêmio"},null,"x",null,{"$f":"jogo!E305","v":"Atlético-PR"},null,null,null,null,null,null,null,null,null,null,null,null,null,null,null,null,"","","","","","",0,0,0,0,0,0]
[null,{"$f":"jogo!C306","v":"Atlético-MG"},null,"x",null,{"$f":"jogo!E306","v":"América-MG"},null,null,null,null,null,null,null,null,null,null,null,null,null,null,null,null,"","","","","","",0,0,0,0,0,0]
[null,{"$f":"jogo!C307","v":"Palmeiras"},null,"x",null,{"$f":"jogo!E307","v":"Cruzeiro"},null,null,null,null,null,null,null,null,null,null,null,null,null,null,null,null,"","","","","","",0,0,0,0,0,0]
[null,{"$f":"jogo!C308","v":"São Paulo"},null,"x",null,{"$f":"jogo!E308","v":"Santos"},null,null,null,null,null,null,null,null,null,null,null,null,null,null,null,null,"","","","","","",0,0,0,0,0,0]
[null,{"$f":"jogo!C309","v":"Fluminense"},null,"x",null,{"$f":"jogo!E309","v":"Flamengo"},null,null,null,null,null,null,null,null,null,null,null,null,null,null,null,null,"","","","","","",0,0,0,0,0,0]
[null,{"$f":"jogo!C310","v":"Botafogo"},null,"x",null,{"$f":"jogo!E310","v":"Internacional"},null,null,null,null,null,null,null,null,null,null,null,null,null,null,null,null,"","","","","","",0,0,0,0,0,0]
["31 ª Rodada",null,null,null,null,null,null,null,null,null,null,null,null,null,null,null,null,null,null,null,null,null,"","","","","","",0,0,0,0,0,0]
["Data/Horário",null,null,null,null,null,"Local",null,null,null,null,null,null,null,null,null,null,null,null,null,null,null,"","","","","","",0,0,0,0,0,0]
[null,{"$f":"jogo!C311","v":"Atlético-PR"},null,"x",null,{"$f":"jogo!E311","v":"Coritiba"},null,null,null,null,null,null,null,null,null,null,null,null,null,null,null,null,"","","","","","",0,0,0,0,0,0]
[null,{"$f":"jogo!C312","v":"Figueirense"},null,"x",null,{"$f":"jogo!E312","v":"Palmeiras"},null,null,null,null,null,null,null,null,null,null,null,null,null,null,null,null,"","","","","","",0,0,0,0,0,0]
[null,{"$f":"jogo!C313","v":"Ponte Preta"},null,"x",null,{"$f":"jogo!E313","v":"Santa Cruz"},null,null,null,null,null,null,null,null,null,null,null,null,null,null,null,null,"","","","","","",0,0,0,0,0,0]
[null,{"$f":"jogo!C314","v":"Sport"},null,"x",null,{"$f":"jogo!E314","v":"Vitória"},null,null,null,null,null,null,null,null,null,null,null,null,null,null,null,null,"","","","","","",0,0,0,0,0,0]
[null,{"$f":"jogo!C315","v":"Internacional"},null,"x",null,{"$f":"jogo!E315","v":"Flamengo"},null,null,null,null,null,null,null,null,null,null,null,null,null,null,null,null,"","","","","","",0,0,0,0,0,0]
[null,{"$f":"jogo!C316","v":"Cruzeiro"},null,"x",null,{"$f":"jogo!E316","v":"Chapecoense"},null,null,null,null,null,null,null,null,null,null,null,null,null,null,null,null,"","","","","","",0,0,0,0,0,0]
[null,{"$f":"jogo!C317","v":"Santos"},null,"x",null,{"$f":"jogo!E317","v":"Grêmio"},null,null,null,null,null,null,null,null,null,null,null,null,null,null,null,null,"","","","","","",0,0,0,0,0,0]
[null,{"$f":"jogo!C318","v":"Corinthians"},null,"x",null,{"$f":"jogo!E318","v":"América-MG"},null,null,null,null,null,null,null,null,null,null,null,null,null,null,null,null,"","","","","","",0,0,0,0,0,0]
[null,{"$f":"jogo!C319","v":"Fluminense"},null,"x",null,{"$f":"jogo!E319","v":"São Paulo"},null,null,null,null,null,null,null,null,null,null,null,null,null,null,null,null,"","","","","","",0,0,0,0,0,0]
[null,{"$f":"jogo!C320","v":"Botafogo"},null,"x",null,{"$f":"jogo!E320","v":"Atlético-MG"},null,null,null,null,null,null,null,null,null,null,null,null,null,null,null,null,"","","","","","",0,0,0,0,0,0]
["32 ª Rodada",null,null,null,null,null,null,null,null,null,null,null,null,null,null,null,null,null,null,null,null,null,"","","","","","",0,0,0,0,0,0]
["Data/Horário",null,null,null,null,null,"Local",null,null,null,null,null,null,null,null,null,null,null,null,null,null,null,"","","","","","",0,0,0,0,0,0]
[null,{"$f":"jogo!C321","v":"Coritiba"},null,"x",null,{"$f":"jogo!E321","v":"Fluminense"},null,null,null,null,null,null,null,null,null,null,null,null,null,null,null,null,"","","","","","",0,0,0,0,0,0]
[null,{"$f":"jogo!C322","v":"Chapecoense"},null,"x",null,{"$f":"jogo!E322","v":"Santos"},null,null,null,null,null,null,null,null,null,null,null,null,null,null,null,null,"","","","","","",0,0,0,0,0,0]
[null,{"$f":"jogo!C323","v":"América-MG"},null,"x",null,{"$f":"jogo!E323","v":"Atlético-PR"},null,null,null,null,null,null,null,null,null,null,null,null,null,null,null,null,"","","","","","",0,0,0,0,0,0]
[null,{"$f":"jogo!C324","v":"Santa Cruz"},null,"x",null,{"$f":"jogo!E324","v":"Botafogo"},null,null,null,null,null,null,null,null,null,null,null,null,null,null,null,null,"","","","","","",0,0,0,0,0,0]
[null,{"$f":"jogo!C325","v":"Grêmio"},null,"x",null,{"$f":"jogo!E325","v":"Internacional"},null,null,null,null,null,null,null,null,null,null,null,null,null,null,null,null,"","","","","","",0,0,0,0,0,0]
[null,{"$f":"jogo!C326","v":"Atlético-MG"},null,"x",null,{"$f":"jogo!E326","v":"Figueirense"},null,null,null,null,null,null,null,null,null,null,null,null,null,null,null,null,"","","","","","",0,0,0,0,0,0]
[null,{"$f":"jogo!C327","v":"Palmeiras"},null,"x",null,{"$f":"jogo!E327","v":"Sport"},null,null,null,null,null,null,null,null,null,null,null,null,null,null,null,null,"","","","","","",0,0,0,0,0,0]
[null,{"$f":"jogo!C328","v":"São Paulo"},null,"x",null,{"$f":"jogo!E328","v":"Ponte Preta"},null,null,null,null,null,null,null,null,null,null,null,null,null,null,null,null,"","","","","","",0,0,0,0,0,0]
[null,{"$f":"jogo!C329","v":"Flamengo"},null,"x",null,{"$f":"jogo!E329","v":"Corinthians"},null,null,null,null,null,null,null,null,null,null,null,null,null,null,null,null,"","","","","","",0,0,0,0,0,0]
[null,{"$f":"jogo!C330","v":"Vitória"},null,"x",null,{"$f":"jogo!E330","v":"Cruzeiro"},null,null,null,null,null,null,null,null,null,null,null,null,null,null,null,null,"","","","","","",0,0,0,0,0,0]
["33 ª Rodada",null,null,null,null,null,null,null,null,null,null,null,null,null,null,null,null,null,null,null,null,null,{"$f":"IF(C390&E390=\"\",\"\",IF(C390=E390,1,IF(C390>E390,3,IF(C390<E390,0))))","v":""},{"$f":"IF(C390&E390=\"\",\"\",IF(E390=C390,1,IF(C390<E390,3,IF(C390>E390,0))))","v":""},{"$f":"IF(C390&E390=\"\",\"\",IF(C390&E390<>\"\",1))","v":""},{"$f":"IF(C390&E390=\"\",\"\",IF(C390&E390<>\"\",1))","v":""},{"$f":"IF(C390=\"\",\"\",C390)","v":""},{"$f":"IF(E390=\"\",\"\",E390)","v":""},0,0,0,0,0,0]
["Data/Horário",null,null,null,null,null,"Local",null,null,null,null,null,null,null,null,null,null,null,null,null,null,null,"","","","","","",{"$f":"IF(W391=3,1,0)","v":0},{"$f":"IF(X391=3,1,0)","v":0},{"$f":"IF(W391=1,1,0)","v":0},{"$f":"IF(X391=1,1,0)","v":0},{"$f":"IF(W391=0,1,0)","v":0},{"$f":"IF(X391=0,1,0)","v":0}]
[null,{"$f":"jogo!C331","v":"Atlético-PR"},null,"x",null,{"$f":"jogo!E331","v":"Cruzeiro"},null,null,null,null,null,null,null,null,null,null,null,null,null,null,null,null,"","","","","","",0,0,0,0,0,0]
[null,{"$f":"jogo!C332","v":"Figueirense"},null,"x",null,{"$f":"jogo!E332","v":"Grêmio"},null,null,null,null,null,null,null,null,null,null,null,null,null,null,null,null,"","","","","","",0,0,0,0,0,0]
[null,{"$f":"jogo!C333","v":"América-MG"},null,"x",null,{"$f":"jogo!E333","v":"São Paulo"},null,null,null,null,null,null,null,null,null,null,null,null,null,null,null,null,"","","","","","",0,0,0,0,0,0]
[null,{"$f":"jogo!C334","v":"Sport"},null,"x",null,{"$f":"jogo!E334","v":"Ponte Preta"},null,null,null,null,null,null,null,null,null,null,null,null,null,null,null,null,"","","","","","",0,0,0,0,0,0]
[null,{"$f":"jogo!C335","v":"Internacional"},null,"x",null,{"$f":"jogo!E335","v":"Santa Cruz"},null,null,null,null,null,null,null,null,null,null,null,null,null,null,null,null,"","","","","","",0,0,0,0,0,0]
[null,{"$f":"jogo!C336","v":"Atlético-MG"},null,"x",null,{"$f":"jogo!E336","v":"Flamengo"},null,null,null,null,null,null,null,null,null,null,null,null,null,null,null,null,"","","","","","",0,0,0,0,0,0]
[null,{"$f":"jogo!C337","v":"Santos"},null,"x",null,{"$f":"jogo!E337","v":"Palmeiras"},null,null,null,null,null,null,null,null,null,null,null,null,null,null,null,null,"","","","","","",0,0,0,0,0,0]
[null,{"$f":"jogo!C338","v":"Corinthians"},null,"x",null,{"$f":"jogo!E338","v":"Chapecoense"},null,null,null,null,null,null,null,null,null,null,null,null,null,null,null,null,"","","","","","",0,0,0,0,0,0]
[null,{"$f":"jogo!C339","v":"Fluminense"},null,"x",null,{"$f":"jogo!E339","v":"Vitória"},null,null,null,null,null,null,null,null,null,null,null,null,null,null,null,null,"","","","","","",0,0,0,0,0,0]
[null,{"$f":"jogo!C340","v":"Botafogo"},null,"x",null,{"$f":"jogo!E340","v":"Coritiba"},null,null,null,null,null,null,null,null,null,null,null,null,null,null,null,null,"","","","","","",0,0,0,0,0,0]
["34 ª Rodada",null,null,null,null,null,null,null,null,null,null,null,null,null,null,null,null,null,null,null,null,null,"","","","","","",0,0,0,0,0,0]
["Data/Horário",null,null,null,null,null,"Local",null,null,null,null,null,null,null,null,null,null,null,null,null,null,null,"","","","","","",0,0,0,0,0,0]
[null,{"$f":"jogo!C341","v":"Coritiba"},null,"x",null,{"$f":"jogo!E341","v":"Atlético-MG"},null,null,null,null,null,null,null,null,null,null,null,null,null,null,null,null,"","","","","","",0,0,0,0,0,0]
[null,{"$f":"jogo!C342","v":"Chapecoense"},null,"x",null,{"$f":"jogo!E342","v":"Figueirense"},null,null,null,null,null,null,null,null,null,null,null,null,null,null,null,null,"","","","","","",0,0,0,0,0,0]
[null,{"$f":"jogo!C343","v":"Ponte Preta"},null,"x",null,{"$f":"jogo!E343","v":"Santos"},null,null,null,null,null,null,null,null,null,null,null,null,null,null,null,null,"","","","","","",0,0,0,0,0,0]
[null,{"$f":"jogo!C344","v":"Santa Cruz"},null,"x",null,{"$f":"jogo!E344","v":"América-MG"},null,null,null,null,null,null,null,null,null,null,null,null,null,null,null,null,"","","","","","",0,0,0,0,0,0]
[null,{"$f":"jogo!C345","v":"Grêmio"},null,"x",null,{"$f":"jogo!E345","v":"Sport"},null,null,null,null,null,null,null,null,null,null,null,null,null,null,null,null,"","","","","","",0,0,0,0,0,0]
[null,{"$f":"jogo!C346","v":"Cruzeiro"},null,"x",null,{"$f":"jogo!E346","v":"Fluminense"},null,null,null,null,null,null,null,null,null,null,null,null,null,null,null,null,"","","","","","",0,0,0,0,0,0]
[null,{"$f":"jogo!C347","v":"Palmeiras"},null,"x",null,{"$f":"jogo!E347","v":"Internacional"},null,null,null,null,null,null,null,null,null,null,null,null,null,null,null,null,"","","","","","",0,0,0,0,0,0]
[null,{"$f":"jogo!C348","v":"São Paulo"},null,"x",null,{"$f":"jogo!E348","v":"Corinthians"},null,null,null,null,null,null,null,null,null,null,null,null,null,null,null,null,"","","","","","",0,0,0,0,0,0]
[null,{"$f":"jogo!C349","v":"Flamengo"},null,"x",null,{"$f":"jogo!E349","v":"Botafogo"},null,null,null,null,null,null,null,null,null,null,null,null,null,null,null,null,"","","","","","",0,0,0,0,0,0]
[null,{"$f":"jogo!C350","v":"Vitória"},null,"x",null,{"$f":"jogo!E350","v":"Atlético-PR"},null,null,null,null,null,null,null,null,null,null,null,null,null,null,null,null,"","","","","","",0,0,0,0,0,0]
["35 ª Rodada",null,null,null,null,null,null,null,null,null,null,null,null,null,null,null,null,null,null,null,null,null,"","","","","","",0,0,0,0,0,0]
["Data/Horário",null,null,null,null,null,"Local",null,null,null,null,null,null,null,null,null,null,null,null,null,null,null,"","","","","","",0,0,0,0,0,0]
[null,{"$f":"jogo!C351","v":"Coritiba"},null,"x",null,{"$f":"jogo!E351","v":"Santa Cruz"},null,null,null,null,null,null,null,null,null,null,null,null,null,null,null,null,"","","","","","",0,0,0,0,0,0]
[null,{"$f":"jogo!C352","v":"Figueirense"},null,"x",null,{"$f":"jogo!E352","v":"Corinthians"},null,null,null,null,null,null,null,null,null,null,null,null,null,null,null,null,"","","","","","",0,0,0,0,0,0]
[null,{"$f":"jogo!C353","v":"América-MG"},null,"x",null,{"$f":"jogo!E353","v":"Flamengo"},null,null,null,null,null,null,null,null,null,null,null,null,null,null,null,null,"","","","","","",0,0,0,0,0,0]
[null,{"$f":"jogo!C354","v":"Sport"},null,"x",null,{"$f":"jogo!E354","v":"Cruzeiro"},null,null,null,null,null,null,null,null,null,null,null,null,null,null,null,null,"","","","","","",0,0,0,0,0,0]
[null,{"$f":"jogo!C355","v":"Internacional"},null,"x",null,{"$f":"jogo!E355","v":"Ponte Preta"},null,null,null,null,null,null,null,null,null,null,null,null,null,null,null,null,"","","","","","",0,0,0,0,0,0]
[null,{"$f":"jogo!C356","v":"Atlético-MG"},null,"x",null,{"$f":"jogo!E356","v":"Palmeiras"},null,null,null,null,null,null,null,null,null,null,null,null,null,null,null,null,"","","","","","",0,0,0,0,0,0]
[null,{"$f":"jogo!C357","v":"Santos"},null,"x",null,{"$f":"jogo!E357","v":"Vitória"},null,null,null,null,null,null,null,null,null,null,null,null,null,null,null,null,"","","","","","",0,0,0,0,0,0]
[null,{"$f":"jogo!C358","v":"São Paulo"},null,"x",null,{"$f":"jogo!E358","v":"Grêmio"},null,null,null,null,null,null,null,null,null,null,null,null,null,null,null,null,"","","","","","",0,0,0,0,0,0]
[null,{"$f":"jogo!C359","v":"Fluminense"},null,"x",null,{"$f":"jogo!E359","v":"Atlético-PR"},null,null,null,null,null,null,null,null,null,null,null,null,null,null,null,null,"","","","","","",0,0,0,0,0,0]
[null,{"$f":"jogo!C360","v":"Botafogo"},null,"x",null,{"$f":"jogo!E360","v":"Chapecoense"},null,null,null,null,null,null,null,null,null,null,null,null,null,null,null,null,"","","","","","",0,0,0,0,0,0]
["36 ª Rodada",null,null,null,null,null,null,null,null,null,null,null,null,null,null,null,null,null,null,null,null,null,"","","","","","",0,0,0,0,0,0]
["Data/Horário",null,null,null,null,null,"Local",null,null,null,null,null,null,null,null,null,null,null,null,null,null,null,"","","","","","",0,0,0,0,0,0]
[null,{"$f":"jogo!C361","v":"Atlético-PR"},null,"x",null,{"$f":"jogo!E361","v":"Sport"},null,null,null,null,null,null,null,null,null,null,null,null,null,null,null,null,"","","","","","",0,0,0,0,0,0]
[null,{"$f":"jogo!C362","v":"Chapecoense"},null,"x",null,{"$f":"jogo!E362","v":"São Paulo"},null,null,null,null,null,null,null,null,null,null,null,null,null,null,null,null,"","","","","","",0,0,0,0,0,0]
[null,{"$f":"jogo!C363","v":"Ponte Preta"},null,"x",null,{"$f":"jogo!E363","v":"Fluminense"},null,null,null,null,null,null,null,null,null,null,null,null,null,null,null,null,"","","","","","",0,0,0,0,0,0]
[null,{"$f":"jogo!C364","v":"Santa Cruz"},null,"x",null,{"$f":"jogo!E364","v":"Atlético-MG"},null,null,null,null,null,null,null,null,null,null,null,null,null,null,null,null,"","","","","","",0,0,0,0,0,0]
[null,{"$f":"jogo!C365","v":"Grêmio"},null,"x",null,{"$f":"jogo!E365","v":"América-MG"},null,null,null,null,null,null,null,null,null,null,null,null,null,null,null,null,"","","","","","",0,0,0,0,0,0]
[null,{"$f":"jogo!C366","v":"Cruzeiro"},null,"x",null,{"$f":"jogo!E366","v":"Santos"},null,null,null,null,null,null,null,null,null,null,null,null,null,null,null,null,"","","","","","",0,0,0,0,0,0]
[null,{"$f":"jogo!C367","v":"Palmeiras"},null,"x",null,{"$f":"jogo!E367","v":"Botafogo"},null,null,null,null,null,null,null,null,null,null,null,null,null,null,null,null,"","","","","","",0,0,0,0,0,0]
[null,{"$f":"jogo!C368","v":"Corinthians"},null,"x",null,{"$f":"jogo!E368","v":"Internacional"},null,null,null,null,null,null,null,null,null,null,null,null,null,null,null,null,"","","","","","",0,0,0,0,0,0]
[null,{"$f":"jogo!C369","v":"Flamengo"},null,"x",null,{"$f":"jogo!E369","v":"Coritiba"},null,null,null,null,null,null,null,null,null,null,null,null,null,null,null,null,"","","","","","",0,0,0,0,0,0]
[null,{"$f":"jogo!C370","v":"Vitória"},null,"x",null,{"$f":"jogo!E370","v":"Figueirense"},null,null,null,null,null,null,null,null,null,null,null,null,null,null,null,null,"","","","","","",0,0,0,0,0,0]
["37 ª Rodada",null,null,null,null,null,null,null,null,null,null,null,null,null,null,null,null,null,null,null,null,null,"","","","","","",0,0,0,0,0,0]
["Data/Horário",null,null,null,null,null,"Local",null,null,null,null,null,null,null,null,null,null,null,null,null,null,null,"","","","","","",0,0,0,0,0,0]
[null,{"$f":"jogo!C371","v":"Coritiba"},null,"x",null,{"$f":"jogo!E371","v":"Vitória"},null,null,null,null,null,null,null,null,null,null,null,null,null,null,null,null,"","","","","","",0,0,0,0,0,0]
[null,{"$f":"jogo!C372","v":"Figueirense"},null,"x",null,{"$f":"jogo!E372","v":"Fluminense"},null,null,null,null,null,null,null,null,null,null,null,null,null,null,null,null,"","","","","","",0,0,0,0,0,0]
[null,{"$f":"jogo!C373","v":"América-MG"},null,"x",null,{"$f":"jogo!E373","v":"Sport"},null,null,null,null,null,null,null,null,null,null,null,null,null,null,null,null,"","","","","","",0,0,0,0,0,0]
[null,{"$f":"jogo!C374","v":"Santa Cruz"},null,"x",null,{"$f":"jogo!E374","v":"Grêmio"},null,null,null,null,null,null,null,null,null,null,null,null,null,null,null,null,"","","","","","",0,0,0,0,0,0]
[null,{"$f":"jogo!C375","v":"Internacional"},null,"x",null,{"$f":"jogo!E375","v":"Cruzeiro"},null,null,null,null,null,null,null,null,null,null,null,null,null,null,null,null,"","","","","","",0,0,0,0,0,0]
[null,{"$f":"jogo!C376","v":"Atlético-MG"},null,"x",null,{"$f":"jogo!E376","v":"São Paulo"},null,null,null,null,null,null,null,null,null,null,null,null,null,null,null,null,"","","","","","",0,0,0,0,0,0]
[null,{"$f":"jogo!C377","v":"Palmeiras"},null,"x",null,{"$f":"jogo!E377","v":"Chapecoense"},null,null,null,null,null,null,null,null,null,null,null,null,null,null,null,null,"","","","","","",0,0,0,0,0,0]
[null,{"$f":"jogo!C378","v":"Corinthians"},null,"x",null,{"$f":"jogo!E378","v":"Atlético-PR"},null,null,null,null,null,null,null,null,null,null,null,null,null,null,null,null,"","","","","","",0,0,0,0,0,0]
[null,{"$f":"jogo!C379","v":"Flamengo"},null,"x",null,{"$f":"jogo!E379","v":"Santos"},null,null,null,null,null,null,null,null,null,null,null,null,null,null,null,null,"","","","","","",0,0,0,0,0,0]
[null,{"$f":"jogo!C380","v":"Botafogo"},null,"x",null,{"$f":"jogo!E380","v":"Ponte Preta"},null,null,null,null,null,null,null,null,null,null,null,null,null,null,null,null,"","","","","","",0,0,0,0,0,0]
["38 ª Rodada",null,null,null,null,null,null,null,null,null,null,null,null,null,null,null,null,null,null,null,null,null,"","","","","","",0,0,0,0,0,0]
["Data/Horário",null,null,null,null,null,"Local",null,null,null,null,null,null,null,null,null,null,null,null,null,null,null,"","","","","","",0,0,0,0,0,0]
[null,{"$f":"jogo!C381","v":"Ponte Preta"},null,"x",null,{"$f":"jogo!E381","v":"Coritiba"},null,null,null,null,null,null,null,null,null,null,null,null,null,null,null,null,"","","","","","",0,0,0,0,0,0]
[null,{"$f":"jogo!C382","v":"Chapecoense"},null,"x",null,{"$f":"jogo!E382","v":"Atlético-MG"},null,null,null,null,null,null,null,null,null,null,null,null,null,null,null,null,"","","","","","",0,0,0,0,0,0]
[null,{"$f":"jogo!C383","v":"Atlético-PR"},null,"x",null,{"$f":"jogo!E383","v":"Flamengo"},null,null,null,null,null,null,null,null,null,null,null,null,null,null,null,null,{"$f":"IF(C454&E454=\"\",\"\",IF(C454=E454,1,IF(C454>E454,3,IF(C454<E454,0))))","v":""},{"$f":"IF(C454&E454=\"\",\"\",IF(E454=C454,1,IF(C454<E454,3,IF(C454>E454,0))))","v":""},{"$f":"IF(C454&E454=\"\",\"\",IF(C454&E454<>\"\",1))","v":""},{"$f":"IF(C454&E454=\"\",\"\",IF(C454&E454<>\"\",1))","v":""},{"$f":"IF(C454=\"\",\"\",C454)","v":""},{"$f":"IF(E454=\"\",\"\",E454)","v":""},0,0,0,0,0,0]
[null,{"$f":"jogo!C384","v":"Grêmio"},null,"x",null,{"$f":"jogo!E384","v":"Botafogo"},null,null,null,null,null,null,null,null,null,null,null,null,null,null,null,null,"","","","","","",{"$f":"IF(W455=3,1,0)","v":0},{"$f":"IF(X455=3,1,0)","v":0},{"$f":"IF(W455=1,1,0)","v":0},{"$f":"IF(X455=1,1,0)","v":0},{"$f":"IF(W455=0,1,0)","v":0},{"$f":"IF(X455=0,1,0)","v":0}]
[null,{"$f":"jogo!C385","v":"Cruzeiro"},null,"x",null,{"$f":"jogo!E385","v":"Corinthians"},null,null,null,null,null,null,null,null,null,null,null,null,null,null,null,null,"","","","","","",0,0,0,0,0,0]
[null,{"$f":"jogo!C386","v":"Santos"},null,"x",null,{"$f":"jogo!E386","v":"América-MG"},null,null,null,null,null,null,null,null,null,null,null,null,null,null,null,null,"","","","","","",0,0,0,0,0,0]
[null,{"$f":"jogo!C387","v":"São Paulo"},null,"x",null,{"$f":"jogo!E387","v":"Santa Cruz"},null,null,null,null,null,null,null,null,null,null,null,null,null,null,null,null,"","","","","","",0,0,0,0,0,0]
[null,{"$f":"jogo!C388","v":"Fluminense"},null,"x",null,{"$f":"jogo!E388","v":"Internacional"},null,null,null,null,null,null,null,null,null,null,null,null,null,null,null,null,"","","","","","",0,0,0,0,0,0]
[null,{"$f":"jogo!C389","v":"Vitória"},null,"x",null,{"$f":"jogo!E389","v":"Palmeiras"},null,null,null,null,null,null,null,null,null,null,null,null,null,null,null,null,"","","","","","",0,0,0,0,0,0]
[null,{"$f":"jogo!C390","v":"Sport"},null,"x",null,{"$f":"jogo!E390","v":"Figueirense"},null,null,null,null,null,null,null,null,null,null,null,null,null,null,null,null,"","","","","","",0,0,0,0,0,0]
[null,null,null,null,null,null,null,null,null,null,null,null,null,null,null,null,null,null,null,null,null,null,"","","","","","",0,0,0,0,0,0]
[null,null,null,null,null,null,null,null,null,null,null,null,null,null,null,null,null,null,null,null,null,null,"","","","","","",0,0,0,0,0,0]
[null,null,null,null,null,null,null,null,null,null,null,null,null,null,null,null,null,null,null,null,null,null,"","","","","","",0,0,0,0,0,0]
[null,null,null,null,null,null,null,null,null,null,null,null,null,null,null,null,null,null,null,null,null,null,"","","","","","",0,0,0,0,0,0]
[null,null,null,null,null,null,null,null,null,null,null,null,null,null,null,null,null,null,null,null,null,null,"","","","","","",0,0,0,0,0,0]
[null,null,null,null,null,null,null,null,null,null,null,null,null,null,null,null,null,null,null,null,null,null,"","","","","","",0,0,0,0,0,0]
[null,null,null,null,null,null,null,null,null,null,null,null,null,null,null,null,null,null,null,null,null,null,"","","","","","",0,0,0,0,0,0]
[null,null,null,null,null,null,null,null,null,null,null,null,null,null,null,null,null,null,null,null,null,null,"","","","","","",0,0,0,0,0,0]
[null,null,null,null,null,null,null,null,null,null,null,null,null,null,null,null,null,null,null,null,null,null,"","","","","","",0,0,0,0,0,0]
[null,null,null,null,null,null,null,null,null,null,null,null,null,null,null,null,null,null,null,null,null,null,"","","","","","",0,0,0,0,0,0]
[null,null,null,null,null,null,null,null,null,null,null,null,null,null,null,null,null,null,null,null,null,null,"","","","","","",0,0,0,0,0,0]
[null,null,null,null,null,null,null,null,null,null,null,null,null,null,null,null,null,null,null,null,null,null,"","","","","","",0,0,0,0,0,0]
[null,null,null,null,null,null,null,null,null,null,null,null,null,null,null,null,null,null,null,null,null,null,"","","","","","",0,0,0,0,0,0]
[null,null,null,null,null,null,null,null,null,null,null,null,null,null,null,null,null,null,null,null,null,null,"","","","","","",0,0,0,0,0,0]
[null,null,null,null,null,null,null,null,null,null,null,null,null,null,null,null,null,null,null,null,null,null,"","","","","","",0,0,0,0,0,0]
[null,null,null,null,null,null,null,null,null,null,null,null,null,null,null,null,null,null,null,null,null,null,"","","","","","",0,0,0,0,0,0]
[null,null,null,null,null,null,null,null,null,null,null,null,null,null,null,null,null,null,null,null,null,null,"","","","","","",0,0,0,0,0,0]
[null,null,null,null,null,null,null,null,null,null,null,null,null,null,null,null,null,null,null,null,null,null,"","","","","","",0,0,0,0,0,0]
[null,null,null,null,null,null,null,null,null,null,null,null,null,null,null,null,null,null,null,null,null,null,"","","","","","",0,0,0,0,0,0]
[null,null,null,null,null,null,null,null,null,null,null,null,null,null,null,null,null,null,null,null,null,null,"","","","","","",0,0,0,0,0,0]
[null,null,null,null,null,null,null,null,null,null,null,null,null,null,null,null,null,null,null,null,null,null,"","","","","","",0,0,0,0,0,0]
[null,null,null,null,null,null,null,null,null,null,null,null,null,null,null,null,null,null,null,null,null,null,"","","","","","",0,0,0,0,0,0]
[null,null,null,null,null,null,null,null,null,null,null,null,null,null,null,null,null,null,null,null,null,null,"","","","","","",0,0,0,0,0,0]
[null,null,null,null,null,null,null,null,null,null,null,null,null,null,null,null,null,null,null,null,null,null,"","","","","","",0,0,0,0,0,0]
[null,null,null,null,null,null,null,null,null,null,null,null,null,null,null,null,null,null,null,null,null,null,"","","","","","",0,0,0,0,0,0]
[null,null,null,null,null,null,null,null,null,null,null,null,null,null,null,null,null,null,null,null,null,null,"","","","","","",0,0,0,0,0,0]
[null,null,null,null,null,null,null,null,null,null,null,null,null,null,null,null,null,null,null,null,null,null,"","","","","","",0,0,0,0,0,0]
[null,null,null,null,null,null,null,null,null,null,null,null,null,null,null,null,null,null,null,null,null,null,"","","","","","",0,0,0,0,0,0]
[null,null,null,null,null,null,null,null,null,null,null,null,null,null,null,null,null,null,null,null,null,null,"","","","","","",0,0,0,0,0,0]
[null,null,null,null,null,null,null,null,null,null,null,null,null,null,null,null,null,null,null,null,null,null,"","","","","","",0,0,0,0,0,0]
[null,null,null,null,null,null,null,null,null,null,null,null,null,null,null,null,null,null,null,null,null,null,"","","","","","",0,0,0,0,0,0]
[null,null,null,null,null,null,null,null,null,null,null,null,null,null,null,null,null,null,null,null,null,null,"","","","","","",0,0,0,0,0,0]
[null,null,null,null,null,null,null,null,null,null,null,null,null,null,null,null,null,null,null,null,null,null,"","","","","","",0,0,0,0,0,0]
[null,null,null,null,null,null,null,null,null,null,null,null,null,null,null,null,null,null,null,null,null,null,"","","","","","",0,0,0,0,0,0]
[null,null,null,null,null,null,null,null,null,null,null,null,null,null,null,null,null,null,null,null,null,null,"","","","","","",0,0,0,0,0,0]
[null,null,null,null,null,null,null,null,null,null,null,null,null,null,null,null,null,null,null,null,null,null,"","","","","","",0,0,0,0,0,0]
[null,null,null,null,null,null,null,null,null,null,null,null,null,null,null,null,null,null,null,null,null,null,"","","","","","",0,0,0,0,0,0]
[null,null,null,null,null,null,null,null,null,null,null,null,null,null,null,null,null,null,null,null,null,null,"","","","","","",0,0,0,0,0,0]
[null,null,null,null,null,null,null,null,null,null,null,null,null,null,null,null,null,null,null,null,null,null,"","","","","","",{"$f":"IF(W500=3,1,0)","v":0},{"$f":"IF(X500=3,1,0)","v":0},{"$f":"IF(W500=1,1,0)","v":0},{"$f":"IF(X500=1,1,0)","v":0},{"$f":"IF(W500=0,1,0)","v":0},0]
[null,null,null,null,null,null,null,null,null,null,null,null,null,null,null,null,null,null,null,null,null,null,"","","","","","",{"$f":"IF(W501=3,1,0)","v":0},{"$f":"IF(X501=3,1,0)","v":0},{"$f":"IF(W501=1,1,0)","v":0},{"$f":"IF(X501=1,1,0)","v":0},{"$f":"IF(W501=0,1,0)","v":0},{"$f":"IF(X501=0,1,0)","v":0}]
[null,null,null,null,null,null,null,null,null,null,null,null,null,null,null,null,null,null,null,null,null,null,"","","","","","",0,0,0,0,0,0]
[null,null,null,null,null,null,null,null,null,null,null,null,null,null,null,null,null,null,null,null,null,null,"","","","","","",0,0,0,0,0,0]
[null,null,null,null,null,null,null,null,null,null,null,null,null,null,null,null,null,null,null,null,null,null,"","","","","","",0,0,0,0,0,0]
[null,null,null,null,null,null,null,null,null,null,null,null,null,null,null,null,null,null,null,null,null,null,"","","","","","",0,0,0,0,0,0]
[null,null,null,null,null,null,null,null,null,null,null,null,null,null,null,null,null,null,null,null,null,null,"","","","","","",0,0,0,0,0,0]
[null,null,null,null,null,null,null,null,null,null,null,null,null,null,null,null,null,null,null,null,null,null,"","","","","","",0,0,0,0,0,0]
[null,null,null,null,null,null,null,null,null,null,null,null,null,null,null,null,null,null,null,null,null,null,"","","","","","",0,0,0,0,0,0]
[null,null,null,null,null,null,null,null,null,null,null,null,null,null,null,null,null,null,null,null,null,null,"","","","","","",0,0,0,0,0,0]
[null,null,null,null,null,null,null,null,null,null,null,null,null,null,null,null,null,null,null,null,null,null,"","","","","","",0,0,0,0,0,0]
[null,null,null,null,null,null,null,null,null,null,null,null,null,null,null,null,null,null,null,null,null,null,"","","","","","",0,0,0,0,0,0]
[null,null,null,null,null,null,null,null,null,null,null,null,null,null,null,null,null,null,null,null,null,null,"","","","","","",0,0,0,0,0,0]
[null,null,null,null,null,null,null,null,null,null,null,null,null,null,null,null,null,null,null,null,null,null,"","","","","","",0,0,0,0,0,0]
[null,null,null,null,null,null,null,null,null,null,null,null,null,null,null,null,null,null,null,null,null,null,"","","","","","",0,0,0,0,0,0]
[null,null,null,null,null,null,null,null,null,null,null,null,null,null,null,null,null,null,null,null,null,null,"","","","","","",0,0,0,0,0,0]
[null,null,null,null,null,null,null,null,null,null,null,null,null,null,null,null,null,null,null,null,null,null,"","","","","","",0,0,0,0,0,0]
[null,null,null,null,null,null,null,null,null,null,null,null,null,null,null,null,null,null,null,null,null,null,"","","","","","",0,0,0,0,0,0]
[null,null,null,null,null,null,null,null,null,null,null,null,null,null,null,null,null,null,null,null,null,null,{"$f":"IF(C518&E518=\"\",\"\",IF(C518=E518,1,IF(C518>E518,3,IF(C518<E518,0))))","v":""},{"$f":"IF(C518&E518=\"\",\"\",IF(E518=C518,1,IF(C518<E518,3,IF(C518>E518,0))))","v":""},{"$f":"IF(C518&E518=\"\",\"\",IF(C518&E518<>\"\",1))","v":""},{"$f":"IF(C518&E518=\"\",\"\",IF(C518&E518<>\"\",1))","v":""},{"$f":"IF(C518=\"\",\"\",C518)","v":""},{"$f":"IF(E518=\"\",\"\",E518)","v":""},0,0,0,0,0,0]
[null,null,null,null,null,null,null,null,null,null,null,null,null,null,null,null,null,null,null,null,null,null,"","","","","","",0,0,0,0,0,0]
[null,null,null,null,null,null,null,null,null,null,null,null,null,null,null,null,null,null,null,null,null,null,"","","","","","",0,0,0,0,0,0]
[null,null,null,null,null,null,null,null,null,null,null,null,null,null,null,null,null,null,null,null,null,null,"","","","","","",0,0,0,0,0,0]
[null,null,null,null,null,null,null,null,null,null,null,null,null,null,null,null,null,null,null,null,null,null,"","","","","","",0,0,0,0,0,0]
[null,null,null,null,null,null,null,null,null,null,null,null,null,null,null,null,null,null,null,null,null,null,"","","","","","",0,0,0,0,0,0]
[null,null,null,null,null,null,null,null,null,null,null,null,null,null,null,null,null,null,null,null,null,null,"","","","","","",0,0,0,0,0,0]
[null,null,null,null,null,null,null,null,null,null,null,null,null,null,null,null,null,null,null,null,null,null,"","","","","","",0,0,0,0,0,0]
[null,null,null,null,null,null,null,null,null,null,null,null,null,null,null,null,null,null,null,null,null,null,"","","","","","",0,0,0,0,0,0]
[null,null,null,null,null,null,null,null,null,null,null,null,null,null,null,null,null,null,null,null,null,null,"","","","","","",0,0,0,0,0,0]
[null,null,null,null,null,null,null,null,null,null,null,null,null,null,null,null,null,null,null,null,null,null,"","","","","","",0,0,0,0,0,0]
[null,null,null,null,null,null,null,null,null,null,null,null,null,null,null,null,null,null,null,null,null,null,"","","","","","",0,0,0,0,0,0]
[null,null,null,null,null,null,null,null,null,null,null,null,null,null,null,null,null,null,null,null,null,null,"","","","","","",0,0,0,0,0,0]
[null,null,null,null,null,null,null,null,null,null,null,null,null,null,null,null,null,null,null,null,null,null,"","","","","","",0,0,0,0,0,0]
[null,null,null,null,null,null,null,null,null,null,null,null,null,null,null,null,null,null,null,null,null,null,"","","","","","",0,0,0,0,0,0]
[null,null,null,null,null,null,null,null,null,null,null,null,null,null,null,null,null,null,null,null,null,null,{"$f":"IF(C533&E533=\"\",\"\",IF(C533=E533,1,IF(C533>E533,3,IF(C533<E533,0))))","v":""},{"$f":"IF(C533&E533=\"\",\"\",IF(E533=C533,1,IF(C533<E533,3,IF(C533>E533,0))))","v":""},{"$f":"IF(C533&E533=\"\",\"\",IF(C533&E533<>\"\",1))","v":""},{"$f":"IF(C533&E533=\"\",\"\",IF(C533&E533<>\"\",1))","v":""},{"$f":"IF(C533=\"\",\"\",C533)","v":""},{"$f":"IF(E533=\"\",\"\",E533)","v":""},{"$f":"IF(W533=3,1,0)","v":0},{"$f":"IF(X533=3,1,0)","v":0},{"$f":"IF(W533=1,1,0)","v":0},{"$f":"IF(X533=1,1,0)","v":0},{"$f":"IF(W533=0,1,0)","v":0},{"$f":"IF(X533=0,1,0)","v":0}]
[null,null,null,null,null,null,null,null,null,null,null,null,null,null,null,null,null,null,null,null,null,null,"","","","","","",0,0,0,0,0,0]
[null,null,null,null,null,null,null,null,null,null,null,null,null,null,null,null,null,null,null,null,null,null,"","","","","","",0,0,0,0,0,0]
[null,null,null,null,null,null,null,null,null,null,null,null,null,null,null,null,null,null,null,null,null,null,"","","","","","",0,0,0,0,0,0]
[null,null,null,null,null,null,null,null,null,null,null,null,null,null,null,null,null,null,null,null,null,null,"","","","","","",0,0,0,0,0,0]
[null,null,null,null,null,null,null,null,null,null,null,null,null,null,null,null,null,null,null,null,null,null,"","","","","","",0,0,0,0,0,0]
[null,null,null,null,null,null,null,null,null,null,null,null,null,null,null,null,null,null,null,null,null,null,"","","","","","",0,0,0,0,0,0]
[null,null,null,null,null,null,null,null,null,null,null,null,null,null,null,null,null,null,null,null,null,null,"","","","","","",0,0,0,0,0,0]
[null,null,null,null,null,null,null,null,null,null,null,null,null,null,null,null,null,null,null,null,null,null,"","","","","","",0,0,0,0,0,0]
[null,null,null,null,null,null,null,null,null,null,null,null,null,null,null,null,null,null,null,null,null,null,"","","","","","",0,0,0,0,0,0]
[null,null,null,null,null,null,null,null,null,null,null,null,null,null,null,null,null,null,null,null,null,null,"","","","","","",0,0,0,0,0,0]
[null,null,null,null,null,null,null,null,null,null,null,null,null,null,null,null,null,null,null,null,null,null,"","","","","","",0,0,0,0,0,0]
[null,null,null,null,null,null,null,null,null,null,null,null,null,null,null,null,null,null,null,null,null,null,"","","","","","",0,0,0,0,0,0]
[null,null,null,null,null,null,null,null,null,null,null,null,null,null,null,null,null,null,null,null,null,null,"","","","","","",0,0,0,0,0,0]
[null,null,null,null,null,null,null,null,null,null,null,null,null,null,null,null,null,null,null,null,null,null,"","","","","","",0,0,0,0,0,0]
[null,null,null,null,null,null,null,null,null,null,null,null,null,null,null,null,null,null,null,null,null,null,"","","","","","",0,0,0,0,0,0]
[null,null,null,null,null,null,null,null,null,null,null,null,null,null,null,null,null,null,null,null,null,null,"","","","","","",0,0,0,0,0,0]
[null,null,null,null,null,null,null,null,null,null,null,null,null,null,null,null,null,null,null,null,null,null,"","","","","","",0,0,0,0,0,0]
[null,null,null,null,null,null,null,null,null,null,null,null,null,null,null,null,null,null,null,null,null,null,"","","","","","",0,0,0,0,0,0]
[null,null,null,null,null,null,null,null,null,null,null,null,null,null,null,null,null,null,null,null,null,null,"","","","","","",0,0,0,0,0,0]
[null,null,null,null,null,null,null,null,null,null,null,null,null,null,null,null,null,null,null,null,null,null,"","","","","","",0,0,0,0,0,0]
[null,null,null,null,null,null,null,null,null,null,null,null,null,null,null,null,null,null,null,null,null,null,{"$f":"IF(C554&E554=\"\",\"\",IF(C554=E554,1,IF(C554>E554,3,IF(C554<E554,0))))","v":""},{"$f":"IF(C554&E554=\"\",\"\",IF(E554=C554,1,IF(C554<E554,3,IF(C554>E554,0))))","v":""},{"$f":"IF(C554&E554=\"\",\"\",IF(C554&E554<>\"\",1))","v":""},{"$f":"IF(C554&E554=\"\",\"\",IF(C554&E554<>\"\",1))","v":""},{"$f":"IF(C554=\"\",\"\",C554)","v":""},{"$f":"IF(E554=\"\",\"\",E554)","v":""},{"$f":"IF(W554=3,1,0)","v":0},{"$f":"IF(X554=3,1,0)","v":0},{"$f":"IF(W554=1,1,0)","v":0},{"$f":"IF(X554=1,1,0)","v":0},{"$f":"IF(W554=0,1,0)","v":0},{"$f":"IF(X554=0,1,0)","v":0}]
[null,null,null,null,null,null,null,null,null,null,null,null,null,null,null,null,null,null,null,null,null,null,"","","","","","",0,0,0,0,0,0]
[null,null,null,null,null,null,null,null,null,null,null,null,null,null,null,null,null,null,null,null,null,null,"","","","","","",0,0,0,0,0,0]
[null,null,null,null,null,null,null,null,null,null,null,null,null,null,null,null,null,null,null,null,null,null,"","","","","","",0,0,0,0,0,0]
[null,null,null,null,null,null,null,null,null,null,null,null,null,null,null,null,null,null,null,null,null,null,"","","","","","",0,0,0,0,0,0]
[null,null,null,null,null,null,null,null,null,null,null,null,null,null,null,null,null,null,null,null,null,null,"","","","","","",0,0,0,0,0,0]
[null,null,null,null,null,null,null,null,null,null,null,null,null,null,null,null,null,null,null,null,null,null,"","","","","","",0,0,0,0,0,0]
[null,null,null,null,null,null,null,null,null,null,null,null,null,null,null,null,null,null,null,null,null,null,"","","","","","",0,0,0,0,0,0]
[null,null,null,null,null,null,null,null,null,null,null,null,null,null,null,null,null,null,null,null,null,null,"","","","","","",0,0,0,0,0,0]
[null,null,null,null,null,null,null,null,null,null,null,null,null,null,null,null,null,null,null,null,null,null,"","","","","","",0,0,0,0,0,0]
[null,null,null,null,null,null,null,null,null,null,null,null,null,null,null,null,null,null,null,null,null,null,"","","","","","",0,0,0,0,0,0]
[null,null,null,null,null,null,null,null,null,null,null,null,null,null,null,null,null,null,null,null,null,null,"","","","","","",0,0,0,0,0,0]
[null,null,null,null,null,null,null,null,null,null,null,null,null,null,null,null,null,null,null,null,null,null,"","","","","","",0,0,0,0,0,0]
[null,null,null,null,null,null,null,null,null,null,null,null,null,null,null,null,null,null,null,null,null,null,"","","","","","",0,0,0,0,0,0]
[null,null,null,null,null,null,null,null,null,null,null,null,null,null,null,null,null,null,null,null,null,null,"","","","","","",0,0,0,0,0,0]
[null,null,null,null,null,null,null,null,null,null,null,null,null,null,null,null,null,null,null,null,null,null,"","","","","","",0,0,0,0,0,0]
[null,null,null,null,null,null,null,null,null,null,null,null,null,null,null,null,null,null,null,null,null,null,"","","","","","",0,0,0,0,0,0]
[null,null,null,null,null,null,null,null,null,null,null,null,null,null,null,null,null,null,null,null,null,null,"","","","","","",0,0,0,0,0,0]
[null,null,null,null,null,null,null,null,null,null,null,null,null,null,null,null,null,null,null,null,null,null,"","","","","","",0,0,0,0,0,0]
[null,null,null,null,null,null,null,null,null,null,null,null,null,null,null,null,null,null,null,null,null,null,"","","","","","",0,0,0,0,0,0]
[null,null,null,null,null,null,null,null,null,null,null,null,null,null,null,null,null,null,null,null,null,null,"","","","","","",0,0,0,0,0,0]
[null,null,null,null,null,null,null,null,null,null,null,null,null,null,null,null,null,null,null,null,null,null,"","","","","","",0,0,0,0,0,0]
[null,null,null,null,null,null,null,null,null,null,null,null,null,null,null,null,null,null,null,null,null,null,"","","","","","",0,0,0,0,0,0]
[null,null,null,null,null,null,null,null,null,null,null,null,null,null,null,null,null,null,null,null,null,null,"","","","","","",0,0,0,0,0,0]
[null,null,null,null,null,null,null,null,null,null,null,null,null,null,null,null,null,null,null,null,null,null,"","","","","","",0,0,0,0,0,0]
[null,null,null,null,null,null,null,null,null,null,null,null,null,null,null,null,null,null,null,null,null,null,"","","","","","",0,0,0,0,0,0]
[null,null,null,null,null,null,null,null,null,null,null,null,null,null,null,null,null,null,null,null,null,null,"","","","","","",0,0,0,0,0,0]
[null,null,null,null,null,null,null,null,null,null,null,null,null,null,null,null,null,null,null,null,null,null,"","","","","","",0,0,0,0,0,0]
[null,null,null,null,null,null,null,null,null,null,null,null,null,null,null,null,null,null,null,null,null,null,"","","","","","",0,0,0,0,0,0]
[null,null,null,null,null,null,null,null,null,null,null,null,null,null,null,null,null,null,null,null,null,null,"","","","","","",0,0,0,0,0,0]
[null,null,null,null,null,null,null,null,null,null,null,null,null,null,null,null,null,null,null,null,null,null,"","","","","","",0,0,0,0,0,0]
[null,null,null,null,null,null,null,null,null,null,null,null,null,null,null,null,null,null,null,null,null,null,"","","","","","",0,0,0,0,0,0]
[null,null,null,null,null,null,null,null,null,null,null,null,null,null,null,null,null,null,null,null,null,null,"","","","","","",0,0,0,0,0,0]
[null,null,null,null,null,null,null,null,null,null,null,null,null,null,null,null,null,null,null,null,null,null,"","","","","","",0,0,0,0,0,0]
[null,null,null,null,null,null,null,null,null,null,null,null,null,null,null,null,null,null,null,null,null,null,"","","","","","",0,0,0,0,0,0]
[null,null,null,null,null,null,null,null,null,null,null,null,null,null,null,null,null,null,null,null,null,null,"","","","","","",0,0,0,0,0,0]
[null,null,null,null,null,null,null,null,null,null,null,null,null,null,null,null,null,null,null,null,null,null,"","","","","","",0,0,0,0,0,0]
[null,null,null,null,null,null,null,null,null,null,null,null,null,null,null,null,null,null,null,null,null,null,"","","","","","",0,0,0,0,0,0]
[null,null,null,null,null,null,null,null,null,null,null,null,null,null,null,null,null,null,null,null,null,null,"","","","","","",0,0,0,0,0,0]
[null,null,null,null,null,null,null,null,null,null,null,null,null,null,null,null,null,null,null,null,null,null,"","","","","","",0,0,0,0,0,0]
[null,null,null,null,null,null,null,null,null,null,null,null,null,null,null,null,null,null,null,null,null,null,"","","","","","",0,0,0,0,0,0]
[null,null,null,null,null,null,null,null,null,null,null,null,null,null,null,null,null,null,null,null,null,null,"","","","","","",0,0,0,0,0,0]
[null,null,null,null,null,null,null,null,null,null,null,null,null,null,null,null,null,null,null,null,null,null,"","","","","","",0,0,0,0,0,0]
[null,null,null,null,null,null,null,null,null,null,null,null,null,null,null,null,null,null,null,null,null,null,"","","","","","",0,0,0,0,0,0]

{"sheet":"jogo","index":1,"n_rows":390,"n_cols":5,"rows_kept":390,"cut":false,"hidden":false,"merged":[]}
[]
[]
[]
[]
[]
[]
[]
[]
[]
[]
["1a rodada","2016-05-15","Botafogo","x","São Paulo"]
["1a rodada","2016-05-15","Santa Cruz","x","Vitória"]
["1a rodada","2016-05-15","América-MG","x","Fluminense"]
["1a rodada","2016-05-15","Figueirense","x","Ponte Preta"]
["1a rodada","2016-05-15","Coritiba","x","Cruzeiro"]
["1a rodada","2016-05-15","Internacional","x","Chapecoense"]
["1a rodada","2016-05-15","Atlético-MG","x","Santos"]
["1a rodada","2016-05-15","Palmeiras","x","Atlético-PR"]
["1a rodada","2016-05-15","Corinthians","x","Grêmio"]
["1a rodada","2016-05-15","Flamengo","x","Sport"]
["2a rodada","2016-05-22","Sport","x","Botafogo"]
["2a rodada","2016-05-22","Ponte Preta","x","Palmeiras"]
["2a rodada","2016-05-22","Chapecoense","x","América-MG"]
["2a rodada","2016-05-22","Atlético-PR","x","Atlético-MG"]
["2a rodada","2016-05-22","Grêmio","x","Flamengo"]
["2a rodada","2016-05-22","Cruzeiro","x","Figueirense"]
["2a rodada","2016-05-22","Santos","x","Coritiba"]
["2a rodada","2016-05-22","São Paulo","x","Internacional"]
["2a rodada","2016-05-22","Fluminense","x","Santa Cruz"]
["2a rodada","2016-05-22","Vitória","x","Corinthians"]
["3a rodada","2016-05-25","Coritiba","x","São Paulo"]
["3a rodada","2016-05-25","Figueirense","x","Santos"]
["3a rodada","2016-05-25","América-MG","x","Vitória"]
["3a rodada","2016-05-25","Santa Cruz","x","Cruzeiro"]
["3a rodada","2016-05-25","Internacional","x","Sport"]
["3a rodada","2016-05-25","Atlético-MG","x","Grêmio"]
["3a rodada","2016-05-25","Palmeiras","x","Fluminense"]
["3a rodada","2016-05-25","Corinthians","x","Ponte Preta"]
["3a rodada","2016-05-25","Flamengo","x","Chapecoense"]
["3a rodada","2016-05-25","Botafogo","x","Atlético-PR"]
["4a rodada","2016-05-29","Atlético-PR","x","Figueirense"]
["4a rodada","2016-05-29","Chapecoense","x","Santa Cruz"]
["4a rodada","2016-05-29","Ponte Preta","x","Flamengo"]
["4a rodada","2016-05-29","Sport","x","Corinthians"]
["4a rodada","2016-05-29","Grêmio","x","Coritiba"]
["4a rodada","2016-05-29","Cruzeiro","x","América-MG"]
["4a rodada","2016-05-29","Santos","x","Internacional"]
["4a rodada","2016-05-29","São Paulo","x","Palmeiras"]
["4a rodada","2016-05-29","Fluminense","x","Botafogo"]
["4a rodada","2016-05-29","Vitória","x","Atlético-MG"]
["5a rodada","2016-06-01","Coritiba","x","Chapecoense"]
["5a rodada","2016-06-01","Figueirense","x","São Paulo"]
["5a rodada","2016-06-01","América-MG","x","Ponte Preta"]
["5a rodada","2016-06-01","Santa Cruz","x","Sport"]
["5a rodada","2016-06-01","Internacional","x","Atlético-PR"]
["5a rodada","2016-06-01","Atlético-MG","x","Fluminense"]
["5a rodada","2016-06-01","Palmeiras","x","Grêmio"]
["5a rodada","2016-06-01","Corinthians","x","Santos"]
["5a rodada","2016-06-01","Flamengo","x","Vitória"]
["5a rodada","2016-06-01","Botafogo","x","Cruzeiro"]
["6a rodada","2016-06-05","Atlético-PR","x","Santa Cruz"]
["6a rodada","2016-06-05","Chapecoense","x","Fluminense"]
["6a rodada","2016-06-05","América-MG","x","Figueirense"]
["6a rodada","2016-06-05","Sport","x","Atlético-MG"]
["6a rodada","2016-06-05","Grêmio","x","Ponte Preta"]
["6a rodada","2016-06-05","Cruzeiro","x","São Paulo"]
["6a rodada","2016-06-05","Santos","x","Botafogo"]
["6a rodada","2016-06-05","Corinthians","x","Coritiba"]
["6a rodada","2016-06-05","Flamengo","x","Palmeiras"]
["6a rodada","2016-06-05","Vitória","x","Internacional"]
["7a rodada","2016-06-12","Coritiba","x","Sport"]
["7a rodada","2016-06-12","Figueirense","x","Flamengo"]
["7a rodada","2016-06-12","Ponte Preta","x","Chapecoense"]
["7a rodada","2016-06-12","Santa Cruz","x","Santos"]
["7a rodada","2016-06-12","Internacional","x","América-MG"]
["7a rodada","2016-06-12","Atlético-MG","x","Cruzeiro"]
["7a rodada","2016-06-12","Palmeiras","x","Corinthians"]
["7a rodada","2016-06-12","São Paulo","x","Atlético-PR"]
["7a rodada","2016-06-12","Fluminense","x","Grêmio"]
["7a rodada","2016-06-12","Botafogo","x","Vitória"]
["8a rodada","2016-06-15","Coritiba","x","Palmeiras"]
["8a rodada","2016-06-15","Chapecoense","x","Grêmio"]
["8a rodada","2016-06-15","Ponte Preta","x","Atlético-PR"]
["8a rodada","2016-06-15","Santa Cruz","x","Figueirense"]
["8a rodada","2016-06-15","Internacional","x","Atlético-MG"]
["8a rodada","2016-06-15","Cruzeiro","x","Flamengo"]
["8a rodada","2016-06-15","Santos","x","Sport"]
["8a rodada","2016-06-15","São Paulo","x","Vitória"]
["8a rodada","2016-06-15","Fluminense","x","Corinthians"]
["8a rodada","2016-06-15","Botafogo","x","América-MG"]
["9a rodada","2016-06-19","Atlético-PR","x","Santos"]
["9a rodada","2016-06-19","Figueirense","x","Internacional"]
["9a rodada","2016-06-19","América-MG","x","Coritiba"]
["9a rodada","2016-06-19","Sport","x","Fluminense"]
["9a rodada","2016-06-19","Grêmio","x","Cruzeiro"]
["9a rodada","2016-06-19","Atlético-MG","x","Ponte Preta"]
["9a rodada","2016-06-19","Palmeiras","x","Santa Cruz"]
["9a rodada","2016-06-19","Corinthians","x","Botafogo"]
["9a rodada","2016-06-19","Flamengo","x","São Paulo"]
["9a rodada","2016-06-19","Vitória","x","Chapecoense"]
["10a rodada","2016-06-22","Coritiba","x","Internacional"]
["10a rodada","2016-06-22","Chapecoense","x","Atlético-PR"]
["10a rodada","2016-06-22","Ponte Preta","x","Cruzeiro"]
["10a rodada","2016-06-22","Santa Cruz","x","Flamengo"]
["10a rodada","2016-06-22","Grêmio","x","Vitória"]
["10a rodada","2016-06-22","Atlético-MG","x","Corinthians"]
["10a rodada","2016-06-22","Palmeiras","x","América-MG"]
["10a rodada","2016-06-22","São Paulo","x","Sport"]
["10a rodada","2016-06-22","Fluminense","x","Santos"]
["10a rodada","2016-06-22","Botafogo","x","Figueirense"]
["11a rodada","2016-06-26","Atlético-PR","x","Grêmio"]
["11a rodada","2016-06-26","Figueirense","x","Coritiba"]
["11a rodada","2016-06-26","América-MG","x","Atlético-MG"]
["11a rodada","2016-06-26","Sport","x","Chapecoense"]
["11a rodada","2016-06-26","Internacional","x","Botafogo"]
["11a rodada","2016-06-26","Cruzeiro","x","Palmeiras"]
["11a rodada","2016-06-26","Santos","x","São Paulo"]
["11a rodada","2016-06-26","Corinthians","x","Santa Cruz"]
["11a rodada","2016-06-26","Flamengo","x","Fluminense"]
["11a rodada","2016-06-26","Vitória","x","Ponte Preta"]
["12a rodada","2016-06-29","Coritiba","x","Atlético-PR"]
["12a rodada","2016-06-29","Chapecoense","x","Cruzeiro"]
["12a rodada","2016-06-29","América-MG","x","Corinthians"]
["12a rodada","2016-06-29","Santa Cruz","x","Ponte Preta"]
["12a rodada","2016-06-29","Grêmio","x","Santos"]
["12a rodada","2016-06-29","Atlético-MG","x","Botafogo"]
["12a rodada","2016-06-29","Palmeiras","x","Figueirense"]
["12a rodada","2016-06-29","São Paulo","x","Fluminense"]
["12a rodada","2016-06-29","Flamengo","x","Internacional"]
["12a rodada","2016-06-29","Vitória","x","Sport"]
["13a rodada","2016-07-03","Atlético-PR","x","América-MG"]
["13a rodada","2016-07-03","Figueirense","x","Atlético-MG"]
["13a rodada","2016-07-03","Ponte Preta","x","São Paulo"]
["13a rodada","2016-07-03","Sport","x","Palmeiras"]
["13a rodada","2016-07-03","Internacional","x","Grêmio"]
["13a rodada","2016-07-03","Cruzeiro","x","Vitória"]
["13a rodada","2016-07-03","Santos","x","Chapecoense"]
["13a rodada","2016-07-03","Corinthians","x","Flamengo"]
["13a rodada","2016-07-03","Fluminense","x","Coritiba"]
["13a rodada","2016-07-03","Botafogo","x","Santa Cruz"]
["14a rodada","2016-07-10","Coritiba","x","Botafogo"]
["14a rodada","2016-07-10","Chapecoense","x","Corinthians"]
["14a rodada","2016-07-10","Ponte Preta","x","Sport"]
["14a rodada","2016-07-10","Santa Cruz","x","Internacional"]
["14a rodada","2016-07-10","Grêmio","x","Figueirense"]
["14a rodada","2016-07-10","Cruzeiro","x","Atlético-PR"]
["14a rodada","2016-07-10","Palmeiras","x","Santos"]
["14a rodada","2016-07-10","São Paulo","x","América-MG"]
["14a rodada","2016-07-10","Flamengo","x","Atlético-MG"]
["14a rodada","2016-07-10","Vitória","x","Fluminense"]
["15a rodada","2016-07-17","Atlético-PR","x","Vitória"]
["15a rodada","2016-07-17","Figueirense","x","Chapecoense"]
["15a rodada","2016-07-17","América-MG","x","Santa Cruz"]
["15a rodada","2016-07-17","Sport","x","Grêmio"]
["15a rodada","2016-07-17","Internacional","x","Palmeiras"]
["15a rodada","2016-07-17","Atlético-MG","x","Coritiba"]
["15a rodada","2016-07-17","Santos","x","Ponte Preta"]
["15a rodada","2016-07-17","Corinthians","x","São Paulo"]
["15a rodada","2016-07-17","Fluminense","x","Cruzeiro"]
["15a rodada","2016-07-17","Botafogo","x","Flamengo"]
["16a rodada","2016-07-24","Atlético-PR","x","Fluminense"]
["16a rodada","2016-07-24","Chapecoense","x","Botafogo"]
["16a rodada","2016-07-24","Ponte Preta","x","Internacional"]
["16a rodada","2016-07-24","Santa Cruz","x","Coritiba"]
["16a rodada","2016-07-24","Grêmio","x","São Paulo"]
["16a rodada","2016-07-24","Cruzeiro","x","Sport"]
["16a rodada","2016-07-24","Palmeiras","x","Atlético-MG"]
["16a rodada","2016-07-24","Corinthians","x","Figueirense"]
["16a rodada","2016-07-24","Flamengo","x","América-MG"]
["16a rodada","2016-07-24","Vitória","x","Santos"]
["17a rodada","2016-07-31","Coritiba","x","Flamengo"]
["17a rodada","2016-07-31","Figueirense","x","Vitória"]
["17a rodada","2016-07-31","América-MG","x","Grêmio"]
["17a rodada","2016-07-31","Sport","x","Atlético-PR"]
["17a rodada","2016-07-31","Internacional","x","Corinthians"]
["17a rodada","2016-07-31","Atlético-MG","x","Santa Cruz"]
["17a rodada","2016-07-31","Santos","x","Cruzeiro"]
["17a rodada","2016-07-31","São Paulo","x","Chapecoense"]
["17a rodada","2016-07-31","Fluminense","x","Ponte Preta"]
["17a rodada","2016-07-31","Botafogo","x","Palmeiras"]
["18a rodada","2016-08-03","Atlético-PR","x","Corinthians"]
["18a rodada","2016-08-03","Chapecoense","x","Palmeiras"]
["18a rodada","2016-08-03","Ponte Preta","x","Botafogo"]
["18a rodada","2016-08-03","Sport","x","América-MG"]
["18a rodada","2016-08-03","Grêmio","x","Santa Cruz"]
["18a rodada","2016-08-03","Cruzeiro","x","Internacional"]
["18a rodada","2016-08-03","Santos","x","Flamengo"]
["18a rodada","2016-08-03","São Paulo","x","Atlético-MG"]
["18a rodada","2016-08-03","Fluminense","x","Figueirense"]
["18a rodada","2016-08-03","Vitória","x","Coritiba"]
["19a rodada","2016-08-07","Coritiba","x","Ponte Preta"]
["19a rodada","2016-08-07","Figueirense","x","Sport"]
["19a rodada","2016-08-07","América-MG","x","Santos"]
["19a rodada","2016-08-07","Santa Cruz","x","São Paulo"]
["19a rodada","2016-08-07","Internacional","x","Fluminense"]
["19a rodada","2016-08-07","Atlético-MG","x","Chapecoense"]
["19a rodada","2016-08-07","Palmeiras","x","Vitória"]
["19a rodada","2016-08-07","Corinthians","x","Cruzeiro"]
["19a rodada","2016-08-07","Flamengo","x","Atlético-PR"]
["19a rodada","2016-08-07","Botafogo","x","Grêmio"]
["20a rodada","2016-08-14","Atlético-PR","x","Palmeiras"]
["20a rodada","2016-08-14","Chapecoense","x","Internacional"]
["20a rodada","2016-08-14","Ponte Preta","x","Figueirense"]
["20a rodada","2016-08-14","Sport","x","Flamengo"]
["20a rodada","2016-08-14","Grêmio","x","Corinthians"]
["20a rodada","2016-08-14","Cruzeiro","x","Coritiba"]
["20a rodada","2016-08-14","Santos","x","Atlético-MG"]
["20a rodada","2016-08-14","São Paulo","x","Botafogo"]
["20a rodada","2016-08-14","Fluminense","x","América-MG"]
["20a rodada","2016-08-14","Vitória","x","Santa Cruz"]
["21a rodada","2016-08-21","Coritiba","x","Santos"]
["21a rodada","2016-08-21","Figueirense","x","Cruzeiro"]
["21a rodada","2016-08-21","América-MG","x","Chapecoense"]
["21a rodada","2016-08-21","Santa Cruz","x","Fluminense"]
["21a rodada","2016-08-21","Internacional","x","São Paulo"]
["21a rodada","2016-08-21","Atlético-MG","x","Atlético-PR"]
["21a rodada","2016-08-21","Palmeiras","x","Ponte Preta"]
["21a rodada","2016-08-21","Corinthians","x","Vitória"]
["21a rodada","2016-08-21","Flamengo","x","Grêmio"]
["21a rodada","2016-08-21","Botafogo","x","Sport"]
["22a rodada","2016-08-28","Atlético-PR","x","Botafogo"]
["22a rodada","2016-08-28","Chapecoense","x","Flamengo"]
["22a rodada","2016-08-28","Ponte Preta","x","Corinthians"]
["22a rodada","2016-08-28","Sport","x","Internacional"]
["22a rodada","2016-08-28","Grêmio","x","Atlético-MG"]
["22a rodada","2016-08-28","Cruzeiro","x","Santa Cruz"]
["22a rodada","2016-08-28","Santos","x","Figueirense"]
["22a rodada","2016-08-28","São Paulo","x","Coritiba"]
["22a rodada","2016-08-28","Fluminense","x","Palmeiras"]
["22a rodada","2016-08-28","Vitória","x","América-MG"]
["23a rodada","2016-09-07","Coritiba","x","Grêmio"]
["23a rodada","2016-09-07","Figueirense","x","Atlético-PR"]
["23a rodada","2016-09-07","América-MG","x","Cruzeiro"]
["23a rodada","2016-09-07","Santa Cruz","x","Chapecoense"]
["23a rodada","2016-09-07","Internacional","x","Santos"]
["23a rodada","2016-09-07","Atlético-MG","x","Vitória"]
["23a rodada","2016-09-07","Palmeiras","x","São Paulo"]
["23a rodada","2016-09-07","Corinthians","x","Sport"]
["23a rodada","2016-09-07","Flamengo","x","Ponte Preta"]
["23a rodada","2016-09-07","Botafogo","x","Fluminense"]
["24a rodada","2016-09-11","Atlético-PR","x","Internacional"]
["24a rodada","2016-09-11","Chapecoense","x","Coritiba"]
["24a rodada","2016-09-11","Ponte Preta","x","América-MG"]
["24a rodada","2016-09-11","Sport","x","Santa Cruz"]
["24a rodada","2016-09-11","Grêmio","x","Palmeiras"]
["24a rodada","2016-09-11","Cruzeiro","x","Botafogo"]
["24a rodada","2016-09-11","Santos","x","Corinthians"]
["24a rodada","2016-09-11","São Paulo","x","Figueirense"]
["24a rodada","2016-09-11","Fluminense","x","Atlético-MG"]
["24a rodada","2016-09-11","Vitória","x","Flamengo"]
["25a rodada","2016-09-14","Coritiba","x","Corinthians"]
["25a rodada","2016-09-14","Figueirense","x","América-MG"]
["25a rodada","2016-09-14","Ponte Preta","x","Grêmio"]
["25a rodada","2016-09-14","Santa Cruz","x","Atlético-PR"]
["25a rodada","2016-09-14","Internacional","x","Vitória"]
["25a rodada","2016-09-14","Atlético-MG","x","Sport"]
["25a rodada","2016-09-14","Palmeiras","x","Flamengo"]
["25a rodada","2016-09-14","São Paulo","x","Cruzeiro"]
["25a rodada","2016-09-14","Fluminense","x","Chapecoense"]
["25a rodada","2016-09-14","Botafogo","x","Santos"]
["26a rodada","2016-09-18","Atlético-PR","x","São Paulo"]
["26a rodada","2016-09-18","Chapecoense","x","Ponte Preta"]
["26a rodada","2016-09-18","América-MG","x","Internacional"]
["26a rodada","2016-09-18","Sport","x","Coritiba"]
["26a rodada","2016-09-18","Grêmio","x","Fluminense"]
["26a rodada","2016-09-18","Cruzeiro","x","Atlético-MG"]
["26a rodada","2016-09-18","Santos","x","Santa Cruz"]
["26a rodada","2016-09-18","Corinthians","x","Palmeiras"]
["26a rodada","2016-09-18","Flamengo","x","Figueirense"]
["26a rodada","2016-09-18","Vitória","x","Botafogo"]
["27a rodada","2016-09-25","Atlético-PR","x","Ponte Preta"]
["27a rodada","2016-09-25","Figueirense","x","Santa Cruz"]
["27a rodada","2016-09-25","América-MG","x","Botafogo"]
["27a rodada","2016-09-25","Sport","x","Santos"]
["27a rodada","2016-09-25","Grêmio","x","Chapecoense"]
["27a rodada","2016-09-25","Atlético-MG","x","Internacional"]
["27a rodada","2016-09-25","Palmeiras","x","Coritiba"]
["27a rodada","2016-09-25","Corinthians","x","Fluminense"]
["27a rodada","2016-09-25","Flamengo","x","Cruzeiro"]
["27a rodada","2016-09-25","Vitória","x","São Paulo"]
["28a rodada","2016-10-01","Coritiba","x","América-MG"]
["28a rodada","2016-10-01","Chapecoense","x","Vitória"]
["28a rodada","2016-10-01","Ponte Preta","x","Atlético-MG"]
["28a rodada","2016-10-01","Santa Cruz","x","Palmeiras"]
["28a rodada","2016-10-01","Internacional","x","Figueirense"]
["28a rodada","2016-10-01","Cruzeiro","x","Grêmio"]
["28a rodada","2016-10-01","Santos","x","Atlético-PR"]
["28a rodada","2016-10-01","São Paulo","x","Flamengo"]
["28a rodada","2016-10-01","Fluminense","x","Sport"]
["28a rodada","2016-10-01","Botafogo","x","Corinthians"]
["29a rodada","2016-10-05","Atlético-PR","x","Chapecoense"]
["29a rodada","2016-10-05","Figueirense","x","Botafogo"]
["29a rodada","2016-10-05","América-MG","x","Palmeiras"]
["29a rodada","2016-10-05","Sport","x","São Paulo"]
["29a rodada","2016-10-05","Internacional","x","Coritiba"]
["29a rodada","2016-10-05","Cruzeiro","x","Ponte Preta"]
["29a rodada","2016-10-05","Santos","x","Fluminense"]
["29a rodada","2016-10-05","Corinthians","x","Atlético-MG"]
["29a rodada","2016-10-05","Flamengo","x","Santa Cruz"]
["29a rodada","2016-10-05","Vitória","x","Grêmio"]
["30a rodada","2016-10-12","Coritiba","x","Figueirense"]
["30a rodada","2016-10-12","Chapecoense","x","Sport"]
["30a rodada","2016-10-12","Ponte Preta","x","Vitória"]
["30a rodada","2016-10-12","Santa Cruz","x","Corinthians"]
["30a rodada","2016-10-12","Grêmio","x","Atlético-PR"]
["30a rodada","2016-10-12","Atlético-MG","x","América-MG"]
["30a rodada","2016-10-12","Palmeiras","x","Cruzeiro"]
["30a rodada","2016-10-12","São Paulo","x","Santos"]
["30a rodada","2016-10-12","Fluminense","x","Flamengo"]
["30a rodada","2016-10-12","Botafogo","x","Internacional"]
["31a rodada","2016-10-16","Atlético-PR","x","Coritiba"]
["31a rodada","2016-10-16","Figueirense","x","Palmeiras"]
["31a rodada","2016-10-16","Ponte Preta","x","Santa Cruz"]
["31a rodada","2016-10-16","Sport","x","Vitória"]
["31a rodada","2016-10-16","Internacional","x","Flamengo"]
["31a rodada","2016-10-16","Cruzeiro","x","Chapecoense"]
["31a rodada","2016-10-16","Santos","x","Grêmio"]
["31a rodada","2016-10-16","Corinthians","x","América-MG"]
["31a rodada","2016-10-16","Fluminense","x","São Paulo"]
["31a rodada","2016-10-16","Botafogo","x","Atlético-MG"]
["32a rodada","2016-10-23","Coritiba","x","Fluminense"]
["32a rodada","2016-10-23","Chapecoense","x","Santos"]
["32a rodada","2016-10-23","América-MG","x","Atlético-PR"]
["32a rodada","2016-10-23","Santa Cruz","x","Botafogo"]
["32a rodada","2016-10-23","Grêmio","x","Internacional"]
["32a rodada","2016-10-23","Atlético-MG","x","Figueirense"]
["32a rodada","2016-10-23","Palmeiras","x","Sport"]
["32a rodada","2016-10-23","São Paulo","x","Ponte Preta"]
["32a rodada","2016-10-23","Flamengo","x","Corinthians"]
["32a rodada","2016-10-23","Vitória","x","Cruzeiro"]
["33a rodada","2016-10-29","Atlético-PR","x","Cruzeiro"]
["33a rodada","2016-10-29","Figueirense","x","Grêmio"]
["33a rodada","2016-10-29","América-MG","x","São Paulo"]
["33a rodada","2016-10-29","Sport","x","Ponte Preta"]
["33a rodada","2016-10-29","Internacional","x","Santa Cruz"]
["33a rodada","2016-10-29","Atlético-MG","x","Flamengo"]
["33a rodada","2016-10-29","Santos","x","Palmeiras"]
["33a rodada","2016-10-29","Corinthians","x","Chapecoense"]
["33a rodada","2016-10-29","Fluminense","x","Vitória"]
["33a rodada","2016-10-29","Botafogo","x","Coritiba"]
["34a rodada","2016-11-06","Coritiba","x","Atlético-MG"]
["34a rodada","2016-11-06","Chapecoense","x","Figueirense"]
["34a rodada","2016-11-06","Ponte Preta","x","Santos"]
["34a rodada","2016-11-06","Santa Cruz","x","América-MG"]
["34a rodada","2016-11-06","Grêmio","x","Sport"]
["34a rodada","2016-11-06","Cruzeiro","x","Fluminense"]
["34a rodada","2016-11-06","Palmeiras","x","Internacional"]
["34a rodada","2016-11-06","São Paulo","x","Corinthians"]
["34a rodada","2016-11-06","Flamengo","x","Botafogo"]
["34a rodada","2016-11-06","Vitória","x","Atlético-PR"]
["35a rodada","2016-11-16","Coritiba","x","Santa Cruz"]
["35a rodada","2016-11-16","Figueirense","x","Corinthians"]
["35a rodada","2016-11-16","América-MG","x","Flamengo"]
["35a rodada","2016-11-16","Sport","x","Cruzeiro"]
["35a rodada","2016-11-16","Internacional","x","Ponte Preta"]
["35a rodada","2016-11-16","Atlético-MG","x","Palmeiras"]
["35a rodada","2016-11-16","Santos","x","Vitória"]
["35a rodada","2016-11-16","São Paulo","x","Grêmio"]
["35a rodada","2016-11-16","Fluminense","x","Atlético-PR"]
["35a rodada","2016-11-16","Botafogo","x","Chapecoense"]
["36a rodada","2016-11-20","Atlético-PR","x","Sport"]
["36a rodada","2016-11-20","Chapecoense","x","São Paulo"]
["36a rodada","2016-11-20","Ponte Preta","x","Fluminense"]
["36a rodada","2016-11-20","Santa Cruz","x","Atlético-MG"]
["36a rodada","2016-11-20","Grêmio","x","América-MG"]
["36a rodada","2016-11-20","Cruzeiro","x","Santos"]
["36a rodada","2016-11-20","Palmeiras","x","Botafogo"]
["36a rodada","2016-11-20","Corinthians","x","Internacional"]
["36a rodada","2016-11-20","Flamengo","x","Coritiba"]
["36a rodada","2016-11-20","Vitória","x","Figueirense"]
["37a rodada","2016-11-27","Coritiba","x","Vitória"]
["37a rodada","2016-11-27","Figueirense","x","Fluminense"]
["37a rodada","2016-11-27","América-MG","x","Sport"]
["37a rodada","2016-11-27","Santa Cruz","x","Grêmio"]
["37a rodada","2016-11-27","Internacional","x","Cruzeiro"]
["37a rodada","2016-11-27","Atlético-MG","x","São Paulo"]
["37a rodada","2016-11-27","Palmeiras","x","Chapecoense"]
["37a rodada","2016-11-27","Corinthians","x","Atlético-PR"]
["37a rodada","2016-11-27","Flamengo","x","Santos"]
["37a rodada","2016-11-27","Botafogo","x","Ponte Preta"]
["38a rodada","2016-12-04","Ponte Preta","x","Coritiba"]
["38a rodada","2016-12-04","Chapecoense","x","Atlético-MG"]
["38a rodada","2016-12-04","Atlético-PR","x","Flamengo"]
["38a rodada","2016-12-04","Grêmio","x","Botafogo"]
["38a rodada","2016-12-04","Cruzeiro","x","Corinthians"]
["38a rodada","2016-12-04","Santos","x","América-MG"]
["38a rodada","2016-12-04","São Paulo","x","Santa Cruz"]
["38a rodada","2016-12-04","Fluminense","x","Internacional"]
["38a rodada","2016-12-04","Vitória","x","Palmeiras"]
["38a rodada","2016-12-04","Sport","x","Figueirense"]

{"sheet":"classificação","index":2,"n_rows":25,"n_cols":14,"rows_kept":25,"cut":false,"hidden":false,"merged":[]}
[null,null,"Classificação","Ponto","Jogo","Vitoria","Empate","derrota","Gol Marcado","Gol contra","Saldo",null,"Pontos Perdidos","Aproveitamento"]
[null,{"$f":"TABELA!I6","v":1},{"$f":"TABELA!J6","v":"Palmeiras"},{"$f":"TABELA!K6","v":3},{"$f":"TABELA!L6","v":1},{"$f":"TABELA!M6","v":1},{"$f":"TABELA!N6","v":0},{"$f":"TABELA!O6","v":0},{"$f":"TABELA!P6","v":4},{"$f":"TABELA!Q6","v":0},{"$f":"TABELA!R6","v":4},null,{"$f":"TABELA!T6","v":0},{"$f":"TABELA!U6","v":1}]
[null,{"$f":"TABELA!I7","v":2},{"$f":"TABELA!J7","v":"Santa Cruz"},{"$f":"TABELA!K7","v":3},{"$f":"TABELA!L7","v":1},{"$f":"TABELA!M7","v":1},{"$f":"TABELA!N7","v":0},{"$f":"TABELA!O7","v":0},{"$f":"TABELA!P7","v":4},{"$f":"TABELA!Q7","v":1},{"$f":"TABELA!R7","v":3},null,{"$f":"TABELA!T7","v":0},{"$f":"TABELA!U7","v":1}]
[null,{"$f":"TABELA!I8","v":3},{"$f":"TABELA!J8","v":"Atlético-MG"},{"$f":"TABELA!K8","v":3},{"$f":"TABELA!L8","v":1},{"$f":"TABELA!M8","v":1},{"$f":"TABELA!N8","v":0},{"$f":"TABELA!O8","v":0},{"$f":"TABELA!P8","v":1},{"$f":"TABELA!Q8","v":0},{"$f":"TABELA!R8","v":1},null,{"$f":"TABELA!T8","v":0},{"$f":"TABELA!U8","v":1}]
[null,{"$f":"TABELA!I9","v":4},{"$f":"TABELA!J9","v":"Coritiba"},{"$f":"TABELA!K9","v":3},{"$f":"TABELA!L9","v":1},{"$f":"TABELA!M9","v":1},{"$f":"TABELA!N9","v":0},{"$f":"TABELA!O9","v":0},{"$f":"TABELA!P9","v":1},{"$f":"TABELA!Q9","v":0},{"$f":"TABELA!R9","v":1},null,{"$f":"TABELA!T9","v":0},{"$f":"TABELA!U9","v":1}]
[null,{"$f":"TABELA!I10","v":5},{"$f":"TABELA!J10","v":"São Paulo"},{"$f":"TABELA!K10","v":3},{"$f":"TABELA!L10","v":1},{"$f":"TABELA!M10","v":1},{"$f":"TABELA!N10","v":0},{"$f":"TABELA!O10","v":0},{"$f":"TABELA!P10","v":1},{"$f":"TABELA!Q10","v":0},{"$f":"TABELA!R10","v":1},null,{"$f":"TABELA!T10","v":0},{"$f":"TABELA!U10","v":1}]
[null,{"$f":"TABELA!I11","v":6},{"$f":"TABELA!J11","v":"Flamengo"},{"$f":"TABELA!K11","v":3},{"$f":"TABELA!L11","v":1},{"$f":"TABELA!M11","v":1},{"$f":"TABELA!N11","v":0},{"$f":"TABELA!O11","v":0},{"$f":"TABELA!P11","v":1},{"$f":"TABELA!Q11","v":0},{"$f":"TABELA!R11","v":1},null,{"$f":"TABELA!T11","v":0},{"$f":"TABELA!U11","v":1}]
[null,{"$f":"TABELA!I12","v":7},{"$f":"TABELA!J12","v":"América-MG"},{"$f":"TABELA!K12","v":0},{"$f":"TABELA!L12","v":0},{"$f":"TABELA!M12","v":0},{"$f":"TABELA!N12","v":0},{"$f":"TABELA!O12","v":0},{"$f":"TABELA!P12","v":0},{"$f":"TABELA!Q12","v":0},{"$f":"TABELA!R12","v":0},null,{"$f":"TABELA!T12","v":0},{"$f":"TABELA!U12","v":""}]
[null,{"$f":"TABELA!I13","v":8},{"$f":"TABELA!J13","v":"Internacional"},{"$f":"TABELA!K13","v":0},{"$f":"TABELA!L13","v":0},{"$f":"TABELA!M13","v":0},{"$f":"TABELA!N13","v":0},{"$f":"TABELA!O13","v":0},{"$f":"TABELA!P13","v":0},{"$f":"TABELA!Q13","v":0},{"$f":"TABELA!R13","v":0},null,{"$f":"TABELA!T13","v":0},{"$f":"TABELA!U13","v":""}]
[null,{"$f":"TABELA!I14","v":9},{"$f":"TABELA!J14","v":"Figueirense"},{"$f":"TABELA!K14","v":0},{"$f":"TABELA!L14","v":0},{"$f":"TABELA!M14","v":0},{"$f":"TABELA!N14","v":0},{"$f":"TABELA!O14","v":0},{"$f":"TABELA!P14","v":0},{"$f":"TABELA!Q14","v":0},{"$f":"TABELA!R14","v":0},null,{"$f":"TABELA!T14","v":0},{"$f":"TABELA!U14","v":""}]
[null,{"$f":"TABELA!I15","v":10},{"$f":"TABELA!J15","v":"Grêmio"},{"$f":"TABELA!K15","v":0},{"$f":"TABELA!L15","v":0},{"$f":"TABELA!M15","v":0},{"$f":"TABELA!N15","v":0},{"$f":"TABELA!O15","v":0},{"$f":"TABELA!P15","v":0},{"$f":"TABELA!Q15","v":0},{"$f":"TABELA!R15","v":0},null,{"$f":"TABELA!T15","v":0},{"$f":"TABELA!U15","v":""}]
[null,{"$f":"TABELA!I16","v":11},{"$f":"TABELA!J16","v":"Corinthians"},{"$f":"TABELA!K16","v":0},{"$f":"TABELA!L16","v":0},{"$f":"TABELA!M16","v":0},{"$f":"TABELA!N16","v":0},{"$f":"TABELA!O16","v":0},{"$f":"TABELA!P16","v":0},{"$f":"TABELA!Q16","v":0},{"$f":"TABELA!R16","v":0},null,{"$f":"TABELA!T16","v":0},{"$f":"TABELA!U16","v":""}]
[null,{"$f":"TABELA!I17","v":12},{"$f":"TABELA!J17","v":"Ponte Preta"},{"$f":"TABELA!K17","v":0},{"$f":"TABELA!L17","v":0},{"$f":"TABELA!M17","v":0},{"$f":"TABELA!N17","v":0},{"$f":"TABELA!O17","v":0},{"$f":"TABELA!P17","v":0},{"$f":"TABELA!Q17","v":0},{"$f":"TABELA!R17","v":0},null,{"$f":"TABELA!T17","v":0},{"$f":"TABELA!U17","v":""}]
[null,{"$f":"TABELA!I18","v":13},{"$f":"TABELA!J18","v":"Chapecoense"},{"$f":"TABELA!K18","v":0},{"$f":"TABELA!L18","v":0},{"$f":"TABELA!M18","v":0},{"$f":"TABELA!N18","v":0},{"$f":"TABELA!O18","v":0},{"$f":"TABELA!P18","v":0},{"$f":"TABELA!Q18","v":0},{"$f":"TABELA!R18","v":0},null,{"$f":"TABELA!T18","v":0},{"$f":"TABELA!U18","v":""}]
[null,{"$f":"TABELA!I19","v":14},{"$f":"TABELA!J19","v":"Fluminense"},{"$f":"TABELA!K19","v":0},{"$f":"TABELA!L19","v":0},{"$f":"TABELA!M19","v":0},{"$f":"TABELA!N19","v":0},{"$f":"TABELA!O19","v":0},{"$f":"TABELA!P19","v":0},{"$f":"TABELA!Q19","v":0},{"$f":"TABELA!R19","v":0},null,{"$f":"TABELA!T19","v":0},{"$f":"TABELA!U19","v":""}]
[null,{"$f":"TABELA!I20","v":15},{"$f":"TABELA!J20","v":"Sport"},{"$f":"TABELA!K20","v":0},{"$f":"TABELA!L20","v":1},{"$f":"TABELA!M20","v":0},{"$f":"TABELA!N20","v":0},{"$f":"TABELA!O20","v":1},{"$f":"TABELA!P20","v":0},{"$f":"TABELA!Q20","v":1},{"$f":"TABELA!R20","v":-1},null,{"$f":"TABELA!T20","v":3},{"$f":"TABELA!U20","v":0}]
[null,{"$f":"TABELA!I21","v":16},{"$f":"TABELA!J21","v":"Botafogo"},{"$f":"TABELA!K21","v":0},{"$f":"TABELA!L21","v":1},{"$f":"TABELA!M21","v":0},{"$f":"TABELA!N21","v":0},{"$f":"TABELA!O21","v":1},{"$f":"TABELA!P21","v":0},{"$f":"TABELA!Q21","v":1},{"$f":"TABELA!R21","v":-1},null,{"$f":"TABELA!T21","v":3},{"$f":"TABELA!U21","v":0}]
[null,{"$f":"TABELA!I22","v":17},{"$f":"TABELA!J22","v":"Cruzeiro"},{"$f":"TABELA!K22","v":0},{"$f":"TABELA!L22","v":1},{"$f":"TABELA!M22","v":0},{"$f":"TABELA!N22","v":0},{"$f":"TABELA!O22","v":1},{"$f":"TABELA!P22","v":0},{"$f":"TABELA!Q22","v":1},{"$f":"TABELA!R22","v":-1},null,{"$f":"TABELA!T22","v":3},{"$f":"TABELA!U22","v":0}]
[null,{"$f":"TABELA!I23","v":18},{"$f":"TABELA!J23","v":"Santos"},{"$f":"TABELA!K23","v":0},{"$f":"TABELA!L23","v":1},{"$f":"TABELA!M23","v":0},{"$f":"TABELA!N23","v":0},{"$f":"TABELA!O23","v":1},{"$f":"TABELA!P23","v":0},{"$f":"TABELA!Q23","v":1},{"$f":"TABELA!R23","v":-1},null,{"$f":"TABELA!T23","v":3},{"$f":"TABELA!U23","v":0}]
[null,{"$f":"TABELA!I24","v":19},{"$f":"TABELA!J24","v":"Vitória"},{"$f":"TABELA!K24","v":0},{"$f":"TABELA!L24","v":1},{"$f":"TABELA!M24","v":0},{"$f":"TABELA!N24","v":0},{"$f":"TABELA!O24","v":1},{"$f":"TABELA!P24","v":1},{"$f":"TABELA!Q24","v":4},{"$f":"TABELA!R24","v":-3},null,{"$f":"TABELA!T24","v":3},{"$f":"TABELA!U24","v":0}]
[null,{"$f":"TABELA!I25","v":20},{"$f":"TABELA!J25","v":"Atlético-PR"},{"$f":"TABELA!K25","v":0},{"$f":"TABELA!L25","v":1},{"$f":"TABELA!M25","v":0},{"$f":"TABELA!N25","v":0},{"$f":"TABELA!O25","v":1},{"$f":"TABELA!P25","v":0},{"$f":"TABELA!Q25","v":4},{"$f":"TABELA!R25","v":-4},null,{"$f":"TABELA!T25","v":3},{"$f":"TABELA!U25","v":0}]
[null,{"$f":"TABELA!I26","v":0}]
[null,{"$f":"TABELA!I27","v":0}]
[null,{"$f":"TABELA!I28","v":0}]
[null,{"$f":"TABELA!I29","v":0}]

{"sheet":"MAIS PLANILHAS DE EXCEL","index":3,"n_rows":25,"n_cols":4,"rows_kept":25,"cut":false,"hidden":false,"merged":[[22,1,22,3],[10,3,12,3],[10,1,12,1],[14,1,16,1],[14,3,16,3],[18,1,20,1],[18,3,20,3],[6,1,8,1],[6,3,8,3],[0,1,1,1],[0,2,1,2],[0,3,1,3],[2,1,4,1],[2,3,4,3]]}
[null,"Veja Outras Planilhas de Excel no guia de compra",null,"www.guiadecompra.com"]
[]
[null,"Planilha de Gastos Doméstico",null,"Planilha de cadastro de Clientes"]
[]
[]
[]
[null,"Planilha de Fluxo de Caixa",null,"Planilhas de Orçamento Familiar"]
[]
[]
[]
[null,"Planilha Para Controle de Estoque",null,"Planilha Custo de Fabricação de Produtos"]
[]
[]
[]
[null,"Planilha Para Cotação de Preços",null,"Planilha de Custo de Construção e Reformas"]
[]
[]
[]
[null,"Baixar Mais Planilhas de Excel",null,"Tabela da Copa do Mundo"]
[]
[]
[]
[null,"Baixe outras planilha de Excel. Otimize seu dia-a-dia fazendo o controle de suas operações"]
[null,"www.tudoexcel.com.br"]
[null,{"$f":"B24","v":"www.tudoexcel.com.br"}]